Department Family,Entity,Date Paid,Expense Type,Expense Area,Supplier,Transaction Number,Amount (�),Supplier VAT Registration Number
BEIS,Met Office,2022-01-12,13 MISCELLANEOUS,SCIENCE,CLARIVATE ANALYTICS (US) LLC,10483,90471.24,EU826000773
BEIS,Met Office,2022-01-12,11 SERVICES,MARKETS,ICIMOD,10490,39223.82,-
BEIS,Met Office,2022-01-12,11 SERVICES,PROGRAMMES,RICHARD NORBY,10491,8115.33,-
BEIS,Met Office,2022-01-05,11 SERVICES,PROGRAMMES,"K F LEWIN CONSULTING, LLC",10492,9713.16,-
BEIS,Met Office,2022-01-12,11 SERVICES,PROGRAMMES,UCAR INCOMING PAYMENTS,10493,17718.16,-
BEIS,Met Office,2022-01-19,11 SERVICES,SERVICES,NSSL GLOBAL LTD,10494,68.16,725151948
BEIS,Met Office,2022-01-19,11 SERVICES,SERVICES,NSSL GLOBAL LTD,10495,53.02,725151948
BEIS,Met Office,2022-01-12,11 SERVICES,MARKETS,TRUSTEES OF COLUMBIA UNIVERSITY,10504,21737.1,-
BEIS,Met Office,2022-01-12,11 SERVICES,MARKETS,TRUSTEES OF COLUMBIA UNIVERSITY,10504,5109.41,-
BEIS,Met Office,2022-01-12,11 SERVICES,MARKETS,TRUSTEES OF COLUMBIA UNIVERSITY,10504,27305.71,-
BEIS,Met Office,2022-01-12,08 SOFTWARE LICENCES,MARKETS,"INTELLOVATIONS, LLC",10506,1552.54,-
BEIS,Met Office,2022-01-12,12 INTERNATIONAL,MARKETS,REDACTED PERONSAL DATA,10511,2876.36,-
BEIS,Met Office,2022-01-19,11 SERVICES,MARKETS,World Food Programme,10520,112255.03,-
BEIS,Met Office,2022-01-19,11 SERVICES,MARKETS,World Food Programme,10520,30875.19,-
BEIS,Met Office,2022-01-19,PLANT AND EQUIPMENT,PROGRAMMES,COMMUNICATIONS & POWER IND. EUROPE LTD,10530,8336.34,664103850
BEIS,Met Office,2022-01-19,PLANT AND EQUIPMENT,SERVICES,COMMUNICATIONS & POWER IND. EUROPE LTD,10530,16672.66,664103850
BEIS,Met Office,2022-01-19,PLANT AND EQUIPMENT,SERVICES,COMMUNICATIONS & POWER IND. EUROPE LTD,10530,39425.94,664103850
BEIS,Met Office,2022-01-26,12 INTERNATIONAL,MARKETS,SPREP,10536,40186.85,-
BEIS,Met Office,2022-01-26,11 SERVICES,MARKETS,ECMWF,21083,34214.62,NOTVATREG
BEIS,Met Office,2022-01-26,11 SERVICES,MARKETS,ECMWF,21091,34214.62,NOTVATREG
BEIS,Met Office,2022-01-26,11 SERVICES,MARKETS,ECMWF,21330,23868.66,NOTVATREG
BEIS,Met Office,2022-01-26,11 SERVICES,MARKETS,ECMWF,21349,23868.66,NOTVATREG
BEIS,Met Office,2022-01-12,STOCK,SERVICES,VAISALA LTD,23247,0,336100011
BEIS,Met Office,2022-01-12,TRADE CREDITORS,SERVICES,VAISALA LTD,23247,79152.48,336100011
BEIS,Met Office,2022-01-12,11 SERVICES,MARKETS,ECMWF,23249,-1035.25,NOTVATREG
BEIS,Met Office,2022-01-12,11 SERVICES,MARKETS,ECMWF,23250,-1035.25,NOTVATREG
BEIS,Met Office,2022-01-12,REVENUE,MARKETS,ECMWF,23254,34485.65,NOTVATREG
BEIS,Met Office,2022-01-12,12 INTERNATIONAL,SERVICES,Agencia Estatal De Meteorologia,23274,16918.38,-
BEIS,Met Office,2022-01-05,13 MISCELLANEOUS,CHIEF FINANCIAL OFFICER,DEMSTAR BUSINESS SOLUTIONS LTD,23279,208.83,10156145J
BEIS,Met Office,2022-01-19,11 SERVICES,MARKETS,ECMWF,23288,-6001.86,NOTVATREG
BEIS,Met Office,2022-01-19,11 SERVICES,MARKETS,ECMWF,23289,12214.88,NOTVATREG
BEIS,Met Office,2022-01-19,11 SERVICES,MARKETS,ECMWF,23290,-136.23,NOTVATREG
BEIS,Met Office,2022-01-19,11 SERVICES,MARKETS,ECMWF,23291,1272.86,NOTVATREG
BEIS,Met Office,2022-01-19,11 SERVICES,MARKETS,ECMWF,23292,29734.06,NOTVATREG
BEIS,Met Office,2022-01-19,11 SERVICES,MARKETS,ECMWF,23293,1792.44,NOTVATREG
BEIS,Met Office,2022-01-19,11 SERVICES,MARKETS,ECMWF,23294,29734.06,NOTVATREG
BEIS,Met Office,2022-01-19,11 SERVICES,MARKETS,ECMWF,23295,251.85,NOTVATREG
BEIS,Met Office,2022-01-19,11 SERVICES,MARKETS,ECMWF,23296,490.27,NOTVATREG
BEIS,Met Office,2022-01-19,11 SERVICES,MARKETS,ECMWF,23297,3516.23,NOTVATREG
BEIS,Met Office,2022-01-19,11 SERVICES,MARKETS,ECMWF,23298,29734.06,NOTVATREG
BEIS,Met Office,2022-01-19,11 SERVICES,MARKETS,ECMWF,23299,845.92,NOTVATREG
BEIS,Met Office,2022-01-19,11 SERVICES,MARKETS,ECMWF,23300,29734.06,NOTVATREG
BEIS,Met Office,2022-01-19,11 SERVICES,MARKETS,ECMWF,23301,664.15,NOTVATREG
BEIS,Met Office,2022-01-19,11 SERVICES,MARKETS,ECMWF,23302,546.02,NOTVATREG
BEIS,Met Office,2022-01-19,11 SERVICES,MARKETS,ECMWF,23303,29734.06,NOTVATREG
BEIS,Met Office,2022-01-19,11 SERVICES,MARKETS,ECMWF,23304,28126.81,NOTVATREG
BEIS,Met Office,2022-01-19,11 SERVICES,MARKETS,ECMWF,23305,2376.09,NOTVATREG
BEIS,Met Office,2022-01-19,11 SERVICES,MARKETS,ECMWF,23306,28126.81,NOTVATREG
BEIS,Met Office,2022-01-19,11 SERVICES,MARKETS,ECMWF,23307,1691.84,NOTVATREG
BEIS,Met Office,2022-01-19,11 SERVICES,MARKETS,ECMWF,23308,29734.06,NOTVATREG
BEIS,Met Office,2022-01-19,11 SERVICES,MARKETS,ECMWF,23309,2804.39,NOTVATREG
BEIS,Met Office,2022-01-19,11 SERVICES,MARKETS,ECMWF,23310,10737.63,NOTVATREG
BEIS,Met Office,2022-01-19,11 SERVICES,MARKETS,ECMWF,23311,1108.01,NOTVATREG
BEIS,Met Office,2022-01-19,11 SERVICES,MARKETS,ECMWF,23312,29734.06,NOTVATREG
BEIS,Met Office,2022-01-19,11 SERVICES,MARKETS,ECMWF,23313,1691.84,NOTVATREG
BEIS,Met Office,2022-01-19,11 SERVICES,MARKETS,ECMWF,23314,532.02,NOTVATREG
BEIS,Met Office,2022-01-19,11 SERVICES,MARKETS,ECMWF,23315,29734.06,NOTVATREG
BEIS,Met Office,2022-01-19,11 SERVICES,MARKETS,ECMWF,23316,3262.48,NOTVATREG
BEIS,Met Office,2022-01-19,11 SERVICES,MARKETS,ECMWF,23317,434.85,NOTVATREG
BEIS,Met Office,2022-01-19,11 SERVICES,MARKETS,ECMWF,23318,29734.06,NOTVATREG
BEIS,Met Office,2022-01-19,11 SERVICES,MARKETS,ECMWF,23319,15104.15,NOTVATREG
BEIS,Met Office,2022-01-19,11 SERVICES,MARKETS,ECMWF,23320,2124.92,NOTVATREG
BEIS,Met Office,2022-01-19,11 SERVICES,MARKETS,ECMWF,23321,3358.71,NOTVATREG
BEIS,Met Office,2022-01-19,11 SERVICES,MARKETS,ECMWF,23322,901,NOTVATREG
BEIS,Met Office,2022-01-19,11 SERVICES,MARKETS,ECMWF,23323,29734.06,NOTVATREG
BEIS,Met Office,2022-01-19,11 SERVICES,MARKETS,ECMWF,23324,827.51,NOTVATREG
BEIS,Met Office,2022-01-19,11 SERVICES,MARKETS,ECMWF,23325,30157.02,NOTVATREG
BEIS,Met Office,2022-01-19,11 SERVICES,MARKETS,ECMWF,23326,275.84,NOTVATREG
BEIS,Met Office,2022-01-19,11 SERVICES,MARKETS,ECMWF,23327,2041.85,NOTVATREG
BEIS,Met Office,2022-01-19,11 SERVICES,MARKETS,ECMWF,23328,4903.65,NOTVATREG
BEIS,Met Office,2022-01-19,11 SERVICES,MARKETS,ECMWF,23329,7226.32,NOTVATREG
BEIS,Met Office,2022-01-19,11 SERVICES,MARKETS,ECMWF,23330,8459.19,NOTVATREG
BEIS,Met Office,2022-01-19,11 SERVICES,MARKETS,ECMWF,23331,706.94,NOTVATREG
BEIS,Met Office,2022-01-19,11 SERVICES,MARKETS,ECMWF,23332,29734.06,NOTVATREG
BEIS,Met Office,2022-01-19,11 SERVICES,MARKETS,ECMWF,23333,437.21,NOTVATREG
BEIS,Met Office,2022-01-19,11 SERVICES,MARKETS,ECMWF,23334,28126.81,NOTVATREG
BEIS,Met Office,2022-01-19,11 SERVICES,MARKETS,ECMWF,23335,534.39,NOTVATREG
BEIS,Met Office,2022-01-19,11 SERVICES,MARKETS,ECMWF,23336,29734.06,NOTVATREG
BEIS,Met Office,2022-01-19,11 SERVICES,MARKETS,ECMWF,23337,2537.76,NOTVATREG
BEIS,Met Office,2022-01-19,11 SERVICES,MARKETS,ECMWF,23338,29734.06,NOTVATREG
BEIS,Met Office,2022-01-19,11 SERVICES,MARKETS,ECMWF,23339,11842.87,NOTVATREG
BEIS,Met Office,2022-01-19,11 SERVICES,MARKETS,ECMWF,23340,1851.75,NOTVATREG
BEIS,Met Office,2022-01-19,11 SERVICES,MARKETS,ECMWF,23341,31.25,NOTVATREG
BEIS,Met Office,2022-01-19,11 SERVICES,MARKETS,ECMWF,23342,1425.21,NOTVATREG
BEIS,Met Office,2022-01-19,11 SERVICES,MARKETS,ECMWF,23343,1995.29,NOTVATREG
BEIS,Met Office,2022-01-19,11 SERVICES,MARKETS,ECMWF,23344,10019.08,NOTVATREG
BEIS,Met Office,2022-01-19,11 SERVICES,MARKETS,ECMWF,23345,361.31,NOTVATREG
BEIS,Met Office,2022-01-19,11 SERVICES,MARKETS,ECMWF,23346,134.81,NOTVATREG
BEIS,Met Office,2022-01-19,11 SERVICES,MARKETS,ECMWF,23347,338.49,NOTVATREG
BEIS,Met Office,2022-01-19,11 SERVICES,MARKETS,ECMWF,23348,1358.44,NOTVATREG
BEIS,Met Office,2022-01-19,11 SERVICES,MARKETS,ECMWF,23349,338.49,NOTVATREG
BEIS,Met Office,2022-01-19,11 SERVICES,MARKETS,ECMWF,23350,1340.16,NOTVATREG
BEIS,Met Office,2022-01-19,11 SERVICES,MARKETS,ECMWF,23351,7351.17,NOTVATREG
BEIS,Met Office,2022-01-19,11 SERVICES,MARKETS,ECMWF,23352,9334.19,NOTVATREG
BEIS,Met Office,2022-01-19,11 SERVICES,MARKETS,ECMWF,23353,6086.78,NOTVATREG
BEIS,Met Office,2022-01-19,11 SERVICES,MARKETS,ECMWF,23354,19714.98,NOTVATREG
BEIS,Met Office,2022-01-19,11 SERVICES,MARKETS,ECMWF,23355,452.2,NOTVATREG
BEIS,Met Office,2022-01-19,11 SERVICES,MARKETS,ECMWF,23356,3680.36,NOTVATREG
BEIS,Met Office,2022-01-19,11 SERVICES,MARKETS,ECMWF,23357,668.9,NOTVATREG
BEIS,Met Office,2022-01-19,11 SERVICES,MARKETS,ECMWF,23358,249.56,NOTVATREG
BEIS,Met Office,2022-01-19,11 SERVICES,MARKETS,ECMWF,23359,666.04,NOTVATREG
BEIS,Met Office,2022-01-19,11 SERVICES,MARKETS,ECMWF,23360,2746.34,NOTVATREG
BEIS,Met Office,2022-01-19,11 SERVICES,MARKETS,ECMWF,23361,666.04,NOTVATREG
BEIS,Met Office,2022-01-19,11 SERVICES,MARKETS,ECMWF,23362,1117.53,NOTVATREG
BEIS,Met Office,2022-01-19,11 SERVICES,MARKETS,ECMWF,23363,3142.48,NOTVATREG
BEIS,Met Office,2022-01-05,13 MISCELLANEOUS,PROGRAMMES,SPRINGER CUSTOMER SERVICE CENTER GMBH,23365,1828.96,209719094
BEIS,Met Office,2022-01-05,13 MISCELLANEOUS,SCIENCE,SPRINGER CUSTOMER SERVICE CENTER GMBH,23365,16460.68,209719094
BEIS,Met Office,2022-01-05,13 MISCELLANEOUS,SERVICES,SPRINGER CUSTOMER SERVICE CENTER GMBH,23365,18289.64,209719094
BEIS,Met Office,2022-01-12,12 INTERNATIONAL,MARKETS,ECOMET,23366,18604.92,EXEMPT
BEIS,Met Office,2022-01-12,STOCK,SERVICES,VAISALA LTD,23368,0,336100011
BEIS,Met Office,2022-01-12,STOCK,SERVICES,VAISALA LTD,23368,0,336100011
BEIS,Met Office,2022-01-12,TRADE CREDITORS,SERVICES,VAISALA LTD,23368,8199.83,336100011
BEIS,Met Office,2022-01-12,TRADE CREDITORS,SERVICES,VAISALA LTD,23368,12244.29,336100011
BEIS,Met Office,2022-01-26,12 INTERNATIONAL,MARKETS,EUMETNET - EIG,23370,852723.21,-
BEIS,Met Office,2022-01-19,11 SERVICES,SCIENCE,B-OPEN SOLUTIONS SRL,23377,5967.93,-
BEIS,Met Office,2022-01-12,10 EQUIPMENT MAINTENANCE,MARKETS,LUMIBIRD,23379,25576.84,-
BEIS,Met Office,2022-01-12,10 EQUIPMENT MAINTENANCE,MARKETS,LUMIBIRD,23380,35807.58,-
BEIS,Met Office,2022-01-26,13 MISCELLANEOUS,CHIEF FINANCIAL OFFICER,DEMSTAR BUSINESS SOLUTIONS LTD,23381,102.47,10156145J
BEIS,Met Office,2022-01-26,10 EQUIPMENT MAINTENANCE,SERVICES,RAYMETRICS S.A. (GREEK ACCOUNT),23385,18415.33,EL999641589
BEIS,Met Office,2022-01-26,10 EQUIPMENT MAINTENANCE,SERVICES,RAYMETRICS S.A. (GREEK ACCOUNT),23385,477.43,EL999641589
BEIS,Met Office,2022-01-26,10 EQUIPMENT MAINTENANCE,SERVICES,RAYMETRICS S.A. (GREEK ACCOUNT),23385,477.43,EL999641589
BEIS,Met Office,2022-01-12,11 SERVICES,SCIENCE,National Oceanography Centre,23393,37066.75,GB 338 5487 64
BEIS,Met Office,2022-01-12,12 INTERNATIONAL,SERVICES,Unesco,23398,8525.61,-
BEIS,Met Office,2022-01-12,11 SERVICES,CHIEF FINANCIAL OFFICER,DBS FINANCE RECEIPTS CTS,23401,162.73,888805068
BEIS,Met Office,2022-01-26,11 SERVICES,CHIEF FINANCIAL OFFICER,EIR,23497,50.92,4736919B
BEIS,Met Office,2022-01-25,11 SERVICES,CHIEF FINANCIAL OFFICER,POSTURITE (UK) LTD,452788,39.03,583565114
BEIS,Met Office,2022-01-05,06 ACCOMMODATION,CHIEF FINANCIAL OFFICER,Exeter City Council,453752,140288,142335594
BEIS,Met Office,2022-01-18,11 SERVICES,PROGRAMMES,Arup,454174,9010,524461265
BEIS,Met Office,2022-01-19,11 SERVICES,SCIENCE,University Of Exeter,455815,2439.2,142047795
BEIS,Met Office,2022-01-04,13 MISCELLANEOUS,MARKETS,AURA,458457,545,N/A
BEIS,Met Office,2022-01-11,13 MISCELLANEOUS,CHIEF FINANCIAL OFFICER,ARTHUR J. GALLAGHER INSURANCE BROKERS LIMITED,458817,-11382,GB484746209
BEIS,Met Office,2022-01-11,13 MISCELLANEOUS,CHIEF FINANCIAL OFFICER,ARTHUR J. GALLAGHER INSURANCE BROKERS LIMITED,458819,-6510,GB484746209
BEIS,Met Office,2022-01-07,06 ACCOMMODATION,PROGRAMMES,CBRE MANAGED SERVICES LTD,459606,1187.92,853936883
BEIS,Met Office,2022-01-20,11 SERVICES,CHIEF FINANCIAL OFFICER,VIRGIN MEDIA BUSINESS,460409,19997.5,591819014
BEIS,Met Office,2022-01-20,11 SERVICES,CHIEF FINANCIAL OFFICER,VIRGIN MEDIA BUSINESS,460409,18229,591819014
BEIS,Met Office,2022-01-06,11 SERVICES,MARKETS,INK COPYWRITERS LTD,460600,8000,850847214
BEIS,Met Office,2022-01-05,06 ACCOMMODATION,CHIEF FINANCIAL OFFICER,Mitie Landscapes Ltd,460825,30.58,GB 416 706 654
BEIS,Met Office,2022-01-06,11 SERVICES,MARKETS,DESIGNAMITE LTD,460970,840,817819989
BEIS,Met Office,2022-01-06,11 SERVICES,MARKETS,DESIGNAMITE LTD,460997,630,817819989
BEIS,Met Office,2022-01-06,FIXTURE & FITTINGS,CHIEF FINANCIAL OFFICER,CBRE MANAGED SERVICES LTD,461432,18406.64,853936883
BEIS,Met Office,2022-01-14,13 MISCELLANEOUS,CHIEF FINANCIAL OFFICER,DWYFOR COFFEE COMPANY LTD,461864,-29.4,559811116
BEIS,Met Office,2022-01-14,13 MISCELLANEOUS,CHIEF FINANCIAL OFFICER,DWYFOR COFFEE COMPANY LTD,461867,19.47,559811116
BEIS,Met Office,2022-01-10,03 STAFF COSTS T&S,SERVICES,CARTUS LTD,462006,-158.76,768489458
BEIS,Met Office,2022-01-24,11 SERVICES,TECHNOLOGY AND CIO,BAE SYSTEMS APPLIED INTELLIGENCE LIMITED,462110,13718.25,GB641407169
BEIS,Met Office,2022-01-05,11 SERVICES,TECHNOLOGY AND CIO,SPRUCE CONSULTING,462469,1312.77,724384923
BEIS,Met Office,2022-01-24,11 SERVICES,PEOPLE,SKILLTEC LIMITED,462473,1295,909833105
BEIS,Met Office,2022-01-19,11 SERVICES,MARKETS,UNITED KINGDOM RESEARCH AND INNOVATION (UKRI),462642,35362.42,GB287461957
BEIS,Met Office,2022-01-26,08 SOFTWARE LICENCES,MARKETS,INTEGRATED SKILLS (UK) LTD,462651,7300,621651269
BEIS,Met Office,2022-01-17,11 SERVICES,OFFICE OF THE CEO,BRYERS LLP,462712,3852,609635917
BEIS,Met Office,2022-01-05,11 SERVICES,MARKETS,WORLDPAY (UK) LTD,462756,71.64,991280207
BEIS,Met Office,2022-01-05,11 SERVICES,MARKETS,WORLDPAY (UK) LTD,462757,123.79,991280207
BEIS,Met Office,2022-01-05,11 SERVICES,MARKETS,WORLDPAY (UK) LTD,462758,15.05,991280207
BEIS,Met Office,2022-01-05,11 SERVICES,MARKETS,WORLDPAY (UK) LTD,462759,110.54,991280207
BEIS,Met Office,2022-01-05,11 SERVICES,MARKETS,WORLDPAY (UK) LTD,462760,247.9,991280207
BEIS,Met Office,2022-01-05,11 SERVICES,MARKETS,WORLDPAY (UK) LTD,462761,41.97,991280207
BEIS,Met Office,2022-01-05,11 SERVICES,MARKETS,WORLDPAY (UK) LTD,462762,833.45,991280207
BEIS,Met Office,2022-01-25,11 SERVICES,CHIEF FINANCIAL OFFICER,POSTURITE (UK) LTD,462855,50,583565114
BEIS,Met Office,2022-01-25,11 SERVICES,CHIEF FINANCIAL OFFICER,POSTURITE (UK) LTD,462857,71.01,583565114
BEIS,Met Office,2022-01-06,11 SERVICES,PEOPLE,BROADBEAN TECHNOLOGY LTD,462914,-3500,GB184088778
BEIS,Met Office,2022-01-24,11 SERVICES,TECHNOLOGY AND CIO,BAE SYSTEMS APPLIED INTELLIGENCE LIMITED,462949,12540,GB641407169
BEIS,Met Office,2022-01-24,11 SERVICES,TECHNOLOGY AND CIO,BAE SYSTEMS APPLIED INTELLIGENCE LIMITED,462960,2025,GB641407169
BEIS,Met Office,2022-01-05,11 SERVICES,CHIEF FINANCIAL OFFICER,POSTURITE (UK) LTD,462961,63.23,583565114
BEIS,Met Office,2022-01-04,11 SERVICES,TECHNOLOGY AND CIO,BOXXE,462964,484,734245248
BEIS,Met Office,2022-01-04,08 SOFTWARE LICENCES,MARKETS,Esri (Uk) Ltd,462968,1382,787430791
BEIS,Met Office,2022-01-24,11 SERVICES,TECHNOLOGY AND CIO,BAE SYSTEMS APPLIED INTELLIGENCE LIMITED,462979,2700,GB641407169
BEIS,Met Office,2022-01-05,11 SERVICES,TECHNOLOGY AND CIO,CLOUDREACH EUROPE LIMITED,463009,2952.27,978187168
BEIS,Met Office,2022-01-24,11 SERVICES,TECHNOLOGY AND CIO,BAE SYSTEMS APPLIED INTELLIGENCE LIMITED,463013,10560,GB641407169
BEIS,Met Office,2022-01-13,11 SERVICES,PROGRAMMES,University Of Reading,463022,46644.34,200012659
BEIS,Met Office,2022-01-04,11 SERVICES,SCIENCE,University Of Reading,463023,25000,200012659
BEIS,Met Office,2022-01-13,12 INTERNATIONAL,MARKETS,ECMWF,463025,586226.28,NOTVATREG
BEIS,Met Office,2022-01-10,08 SOFTWARE LICENCES,CHIEF FINANCIAL OFFICER,PROACTIS LIMITED,463036,13370,GB893169286
BEIS,Met Office,2022-01-24,11 SERVICES,PROGRAMMES,University Of Reading,463037,60000,200012659
BEIS,Met Office,2022-01-12,11 SERVICES,TECHNOLOGY AND CIO,"IBL SOFTWARE ENGINEERING, SPOL S.R.O.",463038,7999.44,SK2020241883
BEIS,Met Office,2022-01-18,INFORMATION TECHNOLOGY,PROGRAMMES,Campbell Scientific Ltd,463065,1217.7,428453933
BEIS,Met Office,2022-01-18,07 EQUIPMENT,SERVICES,Campbell Scientific Ltd,463065,2273.5,428453933
BEIS,Met Office,2022-01-20,INFORMATION TECHNOLOGY,PROGRAMMES,Campbell Scientific Ltd,463066,0,428453933
BEIS,Met Office,2022-01-20,INFORMATION TECHNOLOGY,PROGRAMMES,Campbell Scientific Ltd,463066,108,428453933
BEIS,Met Office,2022-01-20,INFORMATION TECHNOLOGY,PROGRAMMES,Campbell Scientific Ltd,463066,72,428453933
BEIS,Met Office,2022-01-20,INFORMATION TECHNOLOGY,PROGRAMMES,Campbell Scientific Ltd,463066,0,428453933
BEIS,Met Office,2022-01-20,INFORMATION TECHNOLOGY,PROGRAMMES,Campbell Scientific Ltd,463066,1868.4,428453933
BEIS,Met Office,2022-01-20,11 SERVICES,PROGRAMMES,Campbell Scientific Ltd,463066,931.5,428453933
BEIS,Met Office,2022-01-20,11 SERVICES,PROGRAMMES,Campbell Scientific Ltd,463066,621,428453933
BEIS,Met Office,2022-01-20,11 SERVICES,PROGRAMMES,Campbell Scientific Ltd,463066,1170,428453933
BEIS,Met Office,2022-01-05,08 SOFTWARE LICENCES,TECHNOLOGY AND CIO,COMPUTACENTER (UK) LTD,463071,19336.8,490334648
BEIS,Met Office,2022-01-07,11 SERVICES,SERVICES,APPLIED SATELLITE TECHNOLOGY SYSTEMS LTD,463075,8056.79,720108683
BEIS,Met Office,2022-01-10,11 SERVICES,SERVICES,APPLIED SATELLITE TECHNOLOGY SYSTEMS LTD,463080,32.19,720108683
BEIS,Met Office,2022-01-19,FIXTURE & FITTINGS,CHIEF FINANCIAL OFFICER,POSTURITE (UK) LTD,463083,91.14,583565114
BEIS,Met Office,2022-01-04,11 SERVICES,PROGRAMMES,FCDO,463151,-6806.46,888813560
BEIS,Met Office,2022-01-19,11 SERVICES,MARKETS,SYNTAGMA TRANSLATIONS,463155,348.97,-
BEIS,Met Office,2022-01-04,06 ACCOMMODATION,CHIEF FINANCIAL OFFICER,GOVERNMENT PROPERTY AGENCY,463156,-14232,888 8508 47
BEIS,Met Office,2022-01-04,06 ACCOMMODATION,CHIEF FINANCIAL OFFICER,GOVERNMENT PROPERTY AGENCY,463157,15997,888 8508 47
BEIS,Met Office,2022-01-04,06 ACCOMMODATION,CHIEF FINANCIAL OFFICER,GOVERNMENT PROPERTY AGENCY,463158,-3307,888 8508 47
BEIS,Met Office,2022-01-04,06 ACCOMMODATION,CHIEF FINANCIAL OFFICER,GOVERNMENT PROPERTY AGENCY,463159,4357,888 8508 47
BEIS,Met Office,2022-01-04,06 ACCOMMODATION,CHIEF FINANCIAL OFFICER,GOVERNMENT PROPERTY AGENCY,463160,26,888 8508 47
BEIS,Met Office,2022-01-04,06 ACCOMMODATION,CHIEF FINANCIAL OFFICER,NEOS NETWORKS LTD,463161,2400,553769603
BEIS,Met Office,2022-01-12,11 SERVICES,CHIEF FINANCIAL OFFICER,ECMWF,463162,28597.92,NOTVATREG
BEIS,Met Office,2022-01-04,07 EQUIPMENT,CHIEF FINANCIAL OFFICER,COMPUTACENTER (UK) LTD,463164,535.08,490334648
BEIS,Met Office,2022-01-05,13 MISCELLANEOUS,SCIENCE,University Of Oxford,463166,1000,125506730
BEIS,Met Office,2022-01-04,06 ACCOMMODATION,CHIEF FINANCIAL OFFICER,CBRE MANAGED SERVICES LTD,463167,27456.37,853936883
BEIS,Met Office,2022-01-04,FIXTURE & FITTINGS,CHIEF FINANCIAL OFFICER,FMS INTERIOR SERVICES LTD,463169,10399.25,922056940
BEIS,Met Office,2022-01-06,07 EQUIPMENT,SERVICES,ST CROSS ELECTRONICS,463170,46.66,330158101
BEIS,Met Office,2022-01-05,13 MISCELLANEOUS,SCIENCE,University Of Reading,463220,333.34,200012659
BEIS,Met Office,2022-01-19,08 SOFTWARE LICENCES,SERVICES,"IBL SOFTWARE ENGINEERING, SPOL S.R.O.",463224,345,SK2020241883
BEIS,Met Office,2022-01-04,11 SERVICES,PROGRAMMES,FCDO,463225,30307.51,888813560
BEIS,Met Office,2022-01-04,08 SOFTWARE LICENCES,TECHNOLOGY AND CIO,BOXXE,463226,11131.76,734245248
BEIS,Met Office,2022-01-05,11 SERVICES,SERVICES,SOUTHAMPTON MARINE SERVICES,463227,13929.26,322078037
BEIS,Met Office,2022-01-05,06 ACCOMMODATION,CHIEF FINANCIAL OFFICER,BUSINESS SUPPORT CENTRE LTD,463228,1027.28,927365208
BEIS,Met Office,2022-01-06,08 SOFTWARE LICENCES,TECHNOLOGY AND CIO,CLEARVISION (CM) LIMITED,463229,20780.76,881364801
BEIS,Met Office,2022-01-06,08 SOFTWARE LICENCES,TECHNOLOGY AND CIO,CLEARVISION (CM) LIMITED,463229,44752.49,881364801
BEIS,Met Office,2022-01-05,12 INTERNATIONAL,MARKETS,MACITECHSY SOLUTIONS,463230,640,-
BEIS,Met Office,2022-01-05,11 SERVICES,OFFICE OF THE CEO,OSBORNE CLARKE LLP,463232,2000,GB138187353
BEIS,Met Office,2022-01-04,06 ACCOMMODATION,CHIEF FINANCIAL OFFICER,OFFICE ACOUSTIX LTD,463233,1180,176829362
BEIS,Met Office,2022-01-05,06 ACCOMMODATION,MARKETS,Wessex Water Services Ltd,463238,350,-
BEIS,Met Office,2022-01-06,11 SERVICES,MARKETS,AIRPORT OPERATORS ASSOCIATION,463239,3100,743855311
BEIS,Met Office,2022-01-05,04 CONTRACTORS,PEOPLE,MATRIX SCM LIMITED,463240,294267,249 5734 68
BEIS,Met Office,2022-01-31,11 SERVICES,PROGRAMMES,LINKWAVE TECHNOLOGIES LTD,463241,10329.48,715940432
BEIS,Met Office,2022-01-06,06 ACCOMMODATION,CHIEF FINANCIAL OFFICER,PUBLIC SUB ACCOUNT - HMG 4806,463242,680,888805068
BEIS,Met Office,2022-01-07,11 SERVICES,CHIEF FINANCIAL OFFICER,BT CONFERENCING,463243,177.52,245719348
BEIS,Met Office,2022-01-06,06 ACCOMMODATION,MARKETS,SCOTTISH HYDRO-ELECTRIC,463244,95.77,553769603
BEIS,Met Office,2022-01-04,06 ACCOMMODATION,CHIEF FINANCIAL OFFICER,REDACTED PERONSAL DATA,463245,5244,-
BEIS,Met Office,2022-01-05,06 ACCOMMODATION,CHIEF FINANCIAL OFFICER,SHETLAND CLEANING SERVICES,463246,739.97,430028404
BEIS,Met Office,2022-01-06,06 ACCOMMODATION,CHIEF FINANCIAL OFFICER,WEST LANCASHIRE BOROUGH COUNCIL,463247,128.5,-
BEIS,Met Office,2022-01-07,06 ACCOMMODATION,CHIEF FINANCIAL OFFICER,British Gas Trading Ltd,463248,31.39,684966762
BEIS,Met Office,2022-01-07,11 SERVICES,CHIEF FINANCIAL OFFICER,BT GLOBAL SERVICES,463249,12174.2,245719348
BEIS,Met Office,2022-01-05,11 SERVICES,TECHNOLOGY AND CIO,SOFTWAREONE,463252,368.35,GB 942 5301 43
BEIS,Met Office,2022-01-06,06 ACCOMMODATION,CHIEF FINANCIAL OFFICER,BIDVEST NOONAN UK LTD,463254,238.14,GB847176988
BEIS,Met Office,2022-01-25,11 SERVICES,CHIEF FINANCIAL OFFICER,POSTURITE (UK) LTD,463255,784.3,583565114
BEIS,Met Office,2022-01-04,05 CONSULTANTS,PEOPLE,PRICEWATERHOUSE COOPERS LLP,463256,19228,243823957
BEIS,Met Office,2022-01-19,11 SERVICES,PROGRAMMES,MAURITIUS METEOROLOGICAL SOCIETY,463257,9500,-
BEIS,Met Office,2022-01-07,06 ACCOMMODATION,CHIEF FINANCIAL OFFICER,BIDVEST NOONAN UK LTD,463258,238.14,GB847176988
BEIS,Met Office,2022-01-05,11 SERVICES,CHIEF FINANCIAL OFFICER,MITIE SECURITY LTD,463259,10294.23,416706654
BEIS,Met Office,2022-01-05,11 SERVICES,CHIEF FINANCIAL OFFICER,MITIE SECURITY LTD,463260,20588.08,416706654
BEIS,Met Office,2022-01-07,06 ACCOMMODATION,CHIEF FINANCIAL OFFICER,Belfast International Airport Ltd,463261,243.75,617777601
BEIS,Met Office,2022-01-10,11 SERVICES,PEOPLE,GRANICUS FIRMSTEP LTD,463263,33750,792638878
BEIS,Met Office,2022-01-04,08 SOFTWARE LICENCES,TECHNOLOGY AND CIO,SPECIALIST COMPUTER CENTRES,463264,1044.45,313651680
BEIS,Met Office,2022-01-04,08 SOFTWARE LICENCES,TECHNOLOGY AND CIO,SPECIALIST COMPUTER CENTRES,463264,9747.12,313651680
BEIS,Met Office,2022-01-04,08 SOFTWARE LICENCES,TECHNOLOGY AND CIO,SPECIALIST COMPUTER CENTRES,463264,6079.9,313651680
BEIS,Met Office,2022-01-04,08 SOFTWARE LICENCES,TECHNOLOGY AND CIO,SPECIALIST COMPUTER CENTRES,463264,24319.6,313651680
BEIS,Met Office,2022-01-04,08 SOFTWARE LICENCES,TECHNOLOGY AND CIO,SPECIALIST COMPUTER CENTRES,463264,4836.48,313651680
BEIS,Met Office,2022-01-04,08 SOFTWARE LICENCES,TECHNOLOGY AND CIO,SPECIALIST COMPUTER CENTRES,463264,879.36,313651680
BEIS,Met Office,2022-01-04,11 SERVICES,CHIEF FINANCIAL OFFICER,LEASEDRIVE RENTAL MANAGEMENT LTD,463265,394.3,733546040
BEIS,Met Office,2022-01-04,10 EQUIPMENT MAINTENANCE,TECHNOLOGY AND CIO,COMPUTACENTER (UK) LTD,463266,2612.22,490334648
BEIS,Met Office,2022-01-05,06 ACCOMMODATION,CHIEF FINANCIAL OFFICER,BIDVEST NOONAN UK LTD,463267,890.6,GB847176988
BEIS,Met Office,2022-01-06,03 STAFF COSTS T&S,SERVICES,CHARLIE'S TRAVEL LTD,463269,135,783848277
BEIS,Met Office,2022-01-05,08 SOFTWARE LICENCES,PROGRAMMES,MICRO FOCUS SOFTWARE UK LTD,463270,406.99,GB 275 5061 96
BEIS,Met Office,2022-01-06,11 SERVICES,CHIEF FINANCIAL OFFICER,TELEFONICA O2 UK LIMITED,463271,50.14,778603785
BEIS,Met Office,2022-01-05,11 SERVICES,SERVICES,Trinity House,463272,519.6,243120414
BEIS,Met Office,2022-01-05,06 ACCOMMODATION,CHIEF FINANCIAL OFFICER,BIDVEST NOONAN UK LTD,463273,395.68,GB847176988
BEIS,Met Office,2022-01-05,07 EQUIPMENT,SERVICES,Trinity House,463274,1094.46,243120414
BEIS,Met Office,2022-01-05,11 SERVICES,SERVICES,Trinity House,463275,801.82,243120414
BEIS,Met Office,2022-01-06,11 SERVICES,CHIEF FINANCIAL OFFICER,BT plc,463281,11389.88,245719348
BEIS,Met Office,2022-01-25,11 SERVICES,CHIEF FINANCIAL OFFICER,British Red Cross Society,463283,483,706926227
BEIS,Met Office,2022-01-07,11 SERVICES,CHIEF FINANCIAL OFFICER,WEBEX COMMUNICATIONS UK LTD,463284,209.92,815974302
BEIS,Met Office,2022-01-10,13 MISCELLANEOUS,CHIEF FINANCIAL OFFICER,EDEN SPRINGS UK LTD,463285,232.95,232160411
BEIS,Met Office,2022-01-05,03 STAFF COSTS T&S,CHIEF FINANCIAL OFFICER,ENTERPRISE RENT A CAR UK LTD,463286,330.93,215557314
BEIS,Met Office,2022-01-06,10 EQUIPMENT MAINTENANCE,TECHNOLOGY AND CIO,Hewlett Packard Ltd,463287,406000,314149679
BEIS,Met Office,2022-01-06,10 EQUIPMENT MAINTENANCE,TECHNOLOGY AND CIO,Hewlett Packard Ltd,463287,16915.38,314149679
BEIS,Met Office,2022-01-06,10 EQUIPMENT MAINTENANCE,TECHNOLOGY AND CIO,Hewlett Packard Ltd,463287,492965.66,314149679
BEIS,Met Office,2022-01-06,10 EQUIPMENT MAINTENANCE,TECHNOLOGY AND CIO,Hewlett Packard Ltd,463287,100993.96,314149679
BEIS,Met Office,2022-01-06,11 SERVICES,PEOPLE,EDENRED - CHILDCARE VOUCHERS,463288,12956,649 503 520
BEIS,Met Office,2022-01-06,08 SOFTWARE LICENCES,PEOPLE,CATALYST IT,463289,2075,978169262
BEIS,Met Office,2022-01-05,11 SERVICES,SERVICES,HITACHI CAPITAL VEHICLE SOLUTIONS,463290,194.65,GB 823 8248 22
BEIS,Met Office,2022-01-05,04 CONTRACTORS,PEOPLE,MATRIX SCM LIMITED,463291,120939.96,249 5734 68
BEIS,Met Office,2022-01-06,11 SERVICES,PEOPLE,GRANICUS FIRMSTEP LTD,463292,7087.5,792638878
BEIS,Met Office,2022-01-05,08 SOFTWARE LICENCES,TECHNOLOGY AND CIO,Ibm United Kingdom Ltd,463293,50911.6,107328000
BEIS,Met Office,2022-01-05,08 SOFTWARE LICENCES,TECHNOLOGY AND CIO,COMPUTACENTER (UK) LTD,463294,27098.19,490334648
BEIS,Met Office,2022-01-05,10 EQUIPMENT MAINTENANCE,TECHNOLOGY AND CIO,COMPUTACENTER (UK) LTD,463295,16775.37,490334648
BEIS,Met Office,2022-01-05,03 STAFF COSTS T&S,CHIEF FINANCIAL OFFICER,ENTERPRISE RENT A CAR UK LTD,463296,359.83,215557314
BEIS,Met Office,2022-01-10,08 SOFTWARE LICENCES,TECHNOLOGY AND CIO,Ibm United Kingdom Ltd,463297,620,107328000
BEIS,Met Office,2022-01-05,11 SERVICES,CHIEF FINANCIAL OFFICER,ALLSTAR BUSINESS SOLUTIONS LTD,463298,1393.19,747880191
BEIS,Met Office,2022-01-06,11 SERVICES,CHIEF FINANCIAL OFFICER,Reuters Ltd,463300,2160,397000555
BEIS,Met Office,2022-01-06,11 SERVICES,PEOPLE,SWANTECH LOGISTICS LTD,463301,900,769332401
BEIS,Met Office,2022-01-07,08 SOFTWARE LICENCES,TECHNOLOGY AND CIO,Ibm United Kingdom Ltd,463302,11553.7,107328000
BEIS,Met Office,2022-01-10,08 SOFTWARE LICENCES,TECHNOLOGY AND CIO,Ibm United Kingdom Ltd,463303,5672.52,107328000
BEIS,Met Office,2022-01-05,13 MISCELLANEOUS,CHIEF FINANCIAL OFFICER,CANON UK LTD,463304,949.14,523797128
BEIS,Met Office,2022-01-06,13 MISCELLANEOUS,CHIEF FINANCIAL OFFICER,CANON UK LTD,463305,1445.68,523797128
BEIS,Met Office,2022-01-05,13 MISCELLANEOUS,CHIEF FINANCIAL OFFICER,CANON UK LTD,463306,562.6,523797128
BEIS,Met Office,2022-01-05,13 MISCELLANEOUS,CHIEF FINANCIAL OFFICER,CANON UK LTD,463306,1.78,523797128
BEIS,Met Office,2022-01-05,13 MISCELLANEOUS,CHIEF FINANCIAL OFFICER,CANON UK LTD,463306,4.16,523797128
BEIS,Met Office,2022-01-05,13 MISCELLANEOUS,CHIEF FINANCIAL OFFICER,CANON UK LTD,463306,23.9,523797128
BEIS,Met Office,2022-01-05,13 MISCELLANEOUS,CHIEF FINANCIAL OFFICER,CANON UK LTD,463306,7.61,523797128
BEIS,Met Office,2022-01-05,13 MISCELLANEOUS,CHIEF FINANCIAL OFFICER,CANON UK LTD,463306,6.94,523797128
BEIS,Met Office,2022-01-05,11 SERVICES,CHIEF FINANCIAL OFFICER,REDACTED PERONSAL DATA,463308,595,729159704
BEIS,Met Office,2022-01-05,06 ACCOMMODATION,CHIEF FINANCIAL OFFICER,GRS BUILDING SERVICES SOUTH-WEST,463309,700,-
BEIS,Met Office,2022-01-05,07 EQUIPMENT,MARKETS,GRS BUILDING SERVICES SOUTH-WEST,463310,15632.04,-
BEIS,Met Office,2022-01-05,07 EQUIPMENT,MARKETS,GRS BUILDING SERVICES SOUTH-WEST,463310,500,-
BEIS,Met Office,2022-01-06,11 SERVICES,CHIEF FINANCIAL OFFICER,VIRGIN MEDIA BUSINESS,463326,18229,591819014
BEIS,Met Office,2022-01-06,06 ACCOMMODATION,CHIEF FINANCIAL OFFICER,ANGLIAN WATER BUSINESS NATIONAL LTD,463327,32.98,51406002
BEIS,Met Office,2022-01-06,11 SERVICES,CHIEF FINANCIAL OFFICER,QUANTUM MANAGEMENT (UK) LTD,463328,410,781819690
BEIS,Met Office,2022-01-11,11 SERVICES,MARKETS,CULVERWELL ASSOCIATES LTD,463329,3500,386 6119 65
BEIS,Met Office,2022-01-06,11 SERVICES,SERVICES,SOFTWIRE TECHNOLOGY LIMITED,463330,2520,752 1253 57
BEIS,Met Office,2022-01-05,06 ACCOMMODATION,CHIEF FINANCIAL OFFICER,REDACTED PERONSAL DATA,463331,862.5,001874305
BEIS,Met Office,2022-01-06,06 ACCOMMODATION,CHIEF FINANCIAL OFFICER,THE CLEANER CREW COMPANY,463345,664,343579772
BEIS,Met Office,2022-01-06,06 ACCOMMODATION,CHIEF FINANCIAL OFFICER,TENNIE FACILITIES PROPERTY MANAGEMENT LTD,463346,207.15,982055803
BEIS,Met Office,2022-01-10,11 SERVICES,TECHNOLOGY AND CIO,WIREFAST LTD,463347,1968.65,749536001
BEIS,Met Office,2022-01-10,11 SERVICES,TECHNOLOGY AND CIO,WIREFAST LTD,463348,658.64,749536001
BEIS,Met Office,2022-01-07,11 SERVICES,TECHNOLOGY AND CIO,WIREFAST LTD,463349,1689.5,749536001
BEIS,Met Office,2022-01-05,11 SERVICES,MARKETS,ADOPSTAR,463350,1250,115036848
BEIS,Met Office,2022-01-07,11 SERVICES,TECHNOLOGY AND CIO,UKCLOUD LTD,463353,1452.94,172647982
BEIS,Met Office,2022-01-05,03 STAFF COSTS T&S,SERVICES,CHARLIE'S TRAVEL LTD,463354,146.25,783848277
BEIS,Met Office,2022-01-05,03 STAFF COSTS T&S,SERVICES,CHARLIE'S TRAVEL LTD,463354,425.83,783848277
BEIS,Met Office,2022-01-14,11 SERVICES,PROGRAMMES,Esri (Uk) Ltd,463355,2987.83,787430791
BEIS,Met Office,2022-01-07,11 SERVICES,SERVICES,INMARSAT SOLUTIONS (CANADA) INC,463356,59.92,766144223
BEIS,Met Office,2022-01-07,11 SERVICES,SERVICES,INMARSAT SOLUTIONS (CANADA) INC,463357,1620.83,766144223
BEIS,Met Office,2022-01-06,12 INTERNATIONAL,MARKETS,FOXSTONES TRAINING AND LEARNING,463358,2950,-
BEIS,Met Office,2022-01-06,11 SERVICES,CHIEF FINANCIAL OFFICER,MITIE SECURITY LTD,463359,1427.46,416706654
BEIS,Met Office,2022-01-06,11 SERVICES,CHIEF FINANCIAL OFFICER,MITIE SECURITY LTD,463360,66,416706654
BEIS,Met Office,2022-01-06,11 SERVICES,CHIEF FINANCIAL OFFICER,MITIE SECURITY LTD,463361,882.75,416706654
BEIS,Met Office,2022-01-06,11 SERVICES,CHIEF FINANCIAL OFFICER,MITIE SECURITY LTD,463362,77.16,416706654
BEIS,Met Office,2022-01-10,11 SERVICES,TECHNOLOGY AND CIO,AKAMAI TECHNOLOGIES LTD,463363,4921.28,745091237
BEIS,Met Office,2022-01-10,11 SERVICES,TECHNOLOGY AND CIO,AKAMAI TECHNOLOGIES LTD,463363,25836.75,745091237
BEIS,Met Office,2022-01-10,13 MISCELLANEOUS,CHIEF FINANCIAL OFFICER,NORSCOTT VENDING SERVICES LTD,463367,85,751402071
BEIS,Met Office,2022-01-07,06 ACCOMMODATION,CHIEF FINANCIAL OFFICER,MORAY COUNCIL,463368,170.82,663755506
BEIS,Met Office,2022-01-06,11 SERVICES,TECHNOLOGY AND CIO,SSE CONTRACTING LTD,463369,10393.84,382894546
BEIS,Met Office,2022-01-14,11 SERVICES,PROGRAMMES,Esri (Uk) Ltd,463370,3433.67,787430791
BEIS,Met Office,2022-01-07,06 ACCOMMODATION,CHIEF FINANCIAL OFFICER,BANNER GROUP LIMITED,463373,4.32,GB391085740
BEIS,Met Office,2022-01-12,13 MISCELLANEOUS,CHIEF FINANCIAL OFFICER,CARDIFF EXECUTIVE CENTRE LTD,463374,24.94,864497378
BEIS,Met Office,2022-01-07,06 ACCOMMODATION,CHIEF FINANCIAL OFFICER,POWER NI ENERGY LTD,463376,631.67,617518142
BEIS,Met Office,2022-01-06,04 CONTRACTORS,SERVICES,REDACTED PERONSAL DATA,463417,1893.34,267253251
BEIS,Met Office,2022-01-11,11 SERVICES,PROGRAMMES,SOCIAL & LOCAL,463425,32632.5,126 9600 12
BEIS,Met Office,2022-01-14,11 SERVICES,TECHNOLOGY AND CIO,DELOITTE LLP LIMITED,463427,31445.72,GB809707706
BEIS,Met Office,2022-01-10,11 SERVICES,CHIEF FINANCIAL OFFICER,ADAM PHONES LTD,463428,176.7,538877093
BEIS,Met Office,2022-01-10,11 SERVICES,MARKETS,CACI LTD,463429,101605.92,380609841
BEIS,Met Office,2022-01-12,11 SERVICES,PEOPLE,EDENRED I&M (IRS VOUCHERS),463430,-15,649 503 520
BEIS,Met Office,2022-01-07,SOFTWARE LICENCES,SERVICES,RIGNET UK LTD,463431,10365,875299075
BEIS,Met Office,2022-01-07,11 SERVICES,SERVICES,RIGNET UK LTD,463431,4280,875299075
BEIS,Met Office,2022-01-07,11 SERVICES,SERVICES,RIGNET UK LTD,463431,4280,875299075
BEIS,Met Office,2022-01-10,04 CONTRACTORS,PEOPLE,MATRIX SCM LIMITED,463433,162171.48,249 5734 68
BEIS,Met Office,2022-01-07,06 ACCOMMODATION,MARKETS,HIGHLANDS & ISLANDS AIRPORTS LTD.,463434,5.88,945667772
BEIS,Met Office,2022-01-07,06 ACCOMMODATION,MARKETS,HIGHLANDS & ISLANDS AIRPORTS LTD.,463434,117.69,945667772
BEIS,Met Office,2022-01-06,11 SERVICES,PROGRAMMES,UK CENTRE FOR ECOLOGY & HYDROLOGY (UKCEH),463435,109691.29,336940192
BEIS,Met Office,2022-01-07,11 SERVICES,SERVICES,FLYFORM LTD,463436,66665,237333808
BEIS,Met Office,2022-01-20,05 CONSULTANTS,PROGRAMMES,FLYFORM LTD,463437,39848.75,237333808
BEIS,Met Office,2022-01-06,11 SERVICES,TECHNOLOGY AND CIO,FLYFORM LTD,463438,4477.5,237333808
BEIS,Met Office,2022-01-20,11 SERVICES,PROGRAMMES,FLYFORM LTD,463439,12935,237333808
BEIS,Met Office,2022-01-12,03 STAFF COSTS T&S,SERVICES,DBS FINANCE RECEIPTS CTS,463443,803,888805068
BEIS,Met Office,2022-01-10,08 SOFTWARE LICENCES,TECHNOLOGY AND CIO,PRESENTATION CARTOGRAPHY LTD,463444,13084.67,-
BEIS,Met Office,2022-01-10,08 SOFTWARE LICENCES,TECHNOLOGY AND CIO,PRESENTATION CARTOGRAPHY LTD,463445,86,-
BEIS,Met Office,2022-01-11,13 MISCELLANEOUS,PEOPLE,BROADBEAN TECHNOLOGY LTD,463446,1564.2,GB184088778
BEIS,Met Office,2022-01-11,11 SERVICES,CHIEF FINANCIAL OFFICER,APPLE CENTRAL TAXIS,463447,252.9,449238720
BEIS,Met Office,2022-01-19,06 ACCOMMODATION,CHIEF FINANCIAL OFFICER,JAMES & MARCIA BENJAMIN,463488,744,-
BEIS,Met Office,2022-01-10,13 MISCELLANEOUS,SCIENCE,NATIONAL INSTRUMENTS CORP UK LTD,463497,2775,493598779
BEIS,Met Office,2022-01-10,07 EQUIPMENT,SERVICES,Hydrosphere Uk Limited,463502,5508,641275549
BEIS,Met Office,2022-01-10,07 EQUIPMENT,SERVICES,Hydrosphere Uk Limited,463502,25.5,641275549
BEIS,Met Office,2022-01-12,11 SERVICES,CHIEF FINANCIAL OFFICER,EXPONENTIAL-E,463503,4448.25,GB798572653
BEIS,Met Office,2022-01-12,11 SERVICES,CHIEF FINANCIAL OFFICER,EXPONENTIAL-E,463504,1919.5,GB798572653
BEIS,Met Office,2022-01-10,06 ACCOMMODATION,CHIEF FINANCIAL OFFICER,SABRELINE SPECIALIST MACHINE TOOL SERVICES,463505,484.17,GN-871-4660-13
BEIS,Met Office,2022-01-10,06 ACCOMMODATION,CHIEF FINANCIAL OFFICER,SABRELINE SPECIALIST MACHINE TOOL SERVICES,463505,484.18,GN-871-4660-13
BEIS,Met Office,2022-01-10,06 ACCOMMODATION,CHIEF FINANCIAL OFFICER,SABRELINE SPECIALIST MACHINE TOOL SERVICES,463505,484.18,GN-871-4660-13
BEIS,Met Office,2022-01-10,06 ACCOMMODATION,CHIEF FINANCIAL OFFICER,SABRELINE SPECIALIST MACHINE TOOL SERVICES,463505,69.31,GN-871-4660-13
BEIS,Met Office,2022-01-10,06 ACCOMMODATION,CHIEF FINANCIAL OFFICER,SABRELINE SPECIALIST MACHINE TOOL SERVICES,463505,20,GN-871-4660-13
BEIS,Met Office,2022-01-10,06 ACCOMMODATION,CHIEF FINANCIAL OFFICER,SABRELINE SPECIALIST MACHINE TOOL SERVICES,463505,484.17,GN-871-4660-13
BEIS,Met Office,2022-01-17,STOCK,SERVICES,Campbell Scientific Ltd,463506,0,428453933
BEIS,Met Office,2022-01-17,STOCK,SERVICES,Campbell Scientific Ltd,463506,0,428453933
BEIS,Met Office,2022-01-17,STOCK,SERVICES,Campbell Scientific Ltd,463506,0,428453933
BEIS,Met Office,2022-01-17,STOCK,SERVICES,Campbell Scientific Ltd,463506,0,428453933
BEIS,Met Office,2022-01-17,TRADE CREDITORS,SERVICES,Campbell Scientific Ltd,463506,2475,428453933
BEIS,Met Office,2022-01-17,TRADE CREDITORS,SERVICES,Campbell Scientific Ltd,463506,1318.5,428453933
BEIS,Met Office,2022-01-17,TRADE CREDITORS,SERVICES,Campbell Scientific Ltd,463506,1215,428453933
BEIS,Met Office,2022-01-17,TRADE CREDITORS,SERVICES,Campbell Scientific Ltd,463506,1836,428453933
BEIS,Met Office,2022-01-17,11 SERVICES,SERVICES,Campbell Scientific Ltd,463506,67,428453933
BEIS,Met Office,2022-01-12,06 ACCOMMODATION,CHIEF FINANCIAL OFFICER,Belfast International Airport Ltd,463507,24018,617777601
BEIS,Met Office,2022-01-10,11 SERVICES,PROGRAMMES,ROWE IT LTD,463508,45925,924964394
BEIS,Met Office,2022-01-10,11 SERVICES,MARKETS,University Of Manchester,463509,3500,849738956
BEIS,Met Office,2022-01-10,03 STAFF COSTS T&S,SERVICES,CARTUS LTD,463510,6441.8,768489458
BEIS,Met Office,2022-01-10,11 SERVICES,PROGRAMMES,ROWE IT LTD,463511,13500,924964394
BEIS,Met Office,2022-01-10,11 SERVICES,PROGRAMMES,ROWE IT LTD,463514,42852.5,924964394
BEIS,Met Office,2022-01-10,11 SERVICES,PROGRAMMES,JEREMY BENN ASSOCIATES LIMITED,463515,23747,GB 665300941
BEIS,Met Office,2022-01-10,11 SERVICES,TECHNOLOGY AND CIO,SYNTHESYS SYSTEMS ENGINEERS LTD,463534,1741.5,499309492
BEIS,Met Office,2022-01-10,11 SERVICES,PROGRAMMES,ROWE IT LTD,463535,69956.25,924964394
BEIS,Met Office,2022-01-10,11 SERVICES,PROGRAMMES,ROWE IT LTD,463536,49430,924964394
BEIS,Met Office,2022-01-10,06 ACCOMMODATION,CHIEF FINANCIAL OFFICER,SATELLITE MEDIAPORT SERVICES LTD,463537,397.8,-
BEIS,Met Office,2022-01-12,05 CONSULTANTS,OFFICE OF THE CEO,THE LEGAL DIRECTOR,463538,1800,899 338941
BEIS,Met Office,2022-01-19,12 INTERNATIONAL,SERVICES,Unesco,463539,-10000,-
BEIS,Met Office,2022-01-26,11 SERVICES,CHIEF FINANCIAL OFFICER,SWISSCOM (SCHWEIZ) AG,463540,87.99,-
BEIS,Met Office,2022-01-10,CYCLESCHEME,OTHER,EDENRED UK (CYCLESCHEME),463549,3314.87,649 503 520
BEIS,Met Office,2022-01-11,11 SERVICES,SERVICES,VAISALA LTD,463573,12985,336100011
BEIS,Met Office,2022-01-11,03 STAFF COSTS T&S,SERVICES,FALKLAND ISLAND COMPANY LTD,463574,700,N/A
BEIS,Met Office,2022-01-11,03 STAFF COSTS T&S,SERVICES,FALKLAND ISLAND COMPANY LTD,463575,700,N/A
BEIS,Met Office,2022-01-11,03 STAFF COSTS T&S,SERVICES,FALKLAND ISLAND COMPANY LTD,463576,700,N/A
BEIS,Met Office,2022-01-11,11 SERVICES,TECHNOLOGY AND CIO,CLOUDREACH EUROPE LIMITED,463577,5150,978187168
BEIS,Met Office,2022-01-12,11 SERVICES,SERVICES,CLOUDREACH EUROPE LIMITED,463578,7300,978187168
BEIS,Met Office,2022-01-11,04 CONTRACTORS,TECHNOLOGY AND CIO,FDM GROUP LIMITED,463579,3087,583540529
BEIS,Met Office,2022-01-11,04 CONTRACTORS,TECHNOLOGY AND CIO,FDM GROUP LIMITED,463580,4860,583540529
BEIS,Met Office,2022-01-11,04 CONTRACTORS,TECHNOLOGY AND CIO,FDM GROUP LIMITED,463581,2970,583540529
BEIS,Met Office,2022-01-11,06 ACCOMMODATION,CHIEF FINANCIAL OFFICER,WIRELESS NETWORK DEVELOPMENTS (UK) LTD,463582,149.94,GB277474559
BEIS,Met Office,2022-01-11,13 MISCELLANEOUS,CHIEF FINANCIAL OFFICER,BANNER GROUP LIMITED,463583,34.6,GB391085740
BEIS,Met Office,2022-01-11,07 EQUIPMENT,TECHNOLOGY AND CIO,RITTAL LTD,463584,1070,308285849
BEIS,Met Office,2022-01-11,11 SERVICES,CHIEF FINANCIAL OFFICER,TELEFONICA O2 UK LIMITED,463585,7497.99,778603785
BEIS,Met Office,2022-01-11,10 EQUIPMENT MAINTENANCE,SERVICES,YOUNG CALIBRATION LIMITED,463586,720,673900720
BEIS,Met Office,2022-01-11,11 SERVICES,SERVICES,YOUNG CALIBRATION LIMITED,463586,15,673900720
BEIS,Met Office,2022-01-11,13 MISCELLANEOUS,SCIENCE,AB MULTIMEDIA LTD,463589,1850,849333502
BEIS,Met Office,2022-01-11,11 SERVICES,CHIEF FINANCIAL OFFICER,GB GROUP PLC,463590,695.45,539716218
BEIS,Met Office,2022-01-11,13 MISCELLANEOUS,SERVICES,PETERS & MAY GLOBAL LOGISTICS LTD,463591,1218.82,995183276
BEIS,Met Office,2022-01-12,11 SERVICES,MARKETS,R H ADVERTISING LTD,463592,98000,750 4611 54
BEIS,Met Office,2022-01-11,06 ACCOMMODATION,CHIEF FINANCIAL OFFICER,National Oceanography Centre,463593,27002.56,GB 338 5487 64
BEIS,Met Office,2022-01-11,03 STAFF COSTS T&S,CHIEF FINANCIAL OFFICER,ENTERPRISE RENT A CAR UK LTD,463594,1071.83,215557314
BEIS,Met Office,2022-01-12,11 SERVICES,SERVICES,APPLIED SATELLITE TECHNOLOGY SYSTEMS LTD,463596,128.25,720108683
BEIS,Met Office,2022-01-12,10 EQUIPMENT MAINTENANCE,SERVICES,FLUKE UK LTD,463609,825,625938805
BEIS,Met Office,2022-01-12,11 SERVICES,CHIEF FINANCIAL OFFICER,ANVIL MOBILE LIMITED,463610,82.6,981686175
BEIS,Met Office,2022-01-12,11 SERVICES,CHIEF FINANCIAL OFFICER,ANVIL MOBILE LIMITED,463610,98.6,981686175
BEIS,Met Office,2022-01-12,11 SERVICES,CHIEF FINANCIAL OFFICER,ANVIL MOBILE LIMITED,463610,111.3,981686175
BEIS,Met Office,2022-01-12,11 SERVICES,CHIEF FINANCIAL OFFICER,ANVIL MOBILE LIMITED,463610,34.85,981686175
BEIS,Met Office,2022-01-12,11 SERVICES,CHIEF FINANCIAL OFFICER,ANVIL MOBILE LIMITED,463610,43.6,981686175
BEIS,Met Office,2022-01-12,06 ACCOMMODATION,CHIEF FINANCIAL OFFICER,MORAY COUNCIL,463611,1173.08,663755506
BEIS,Met Office,2022-01-12,12 INTERNATIONAL,MARKETS,MYACORN LTD,463612,10069.01,-
BEIS,Met Office,2022-01-12,12 INTERNATIONAL,MARKETS,MYACORN LTD,463612,28965,-
BEIS,Met Office,2022-01-12,11 SERVICES,PEOPLE,EDENRED I&M (IRS VOUCHERS),463631,70354.5,649 503 520
BEIS,Met Office,2022-01-12,03 STAFF COSTS T&S,SERVICES,CHARLIE'S TRAVEL LTD,463632,655.51,783848277
BEIS,Met Office,2022-01-14,03 STAFF COSTS T&S,SERVICES,CHARLIE'S TRAVEL LTD,463633,290.9,783848277
BEIS,Met Office,2022-01-12,06 ACCOMMODATION,CHIEF FINANCIAL OFFICER,SAFESTORE LTD,463634,2815.28,722887607
BEIS,Met Office,2022-01-14,11 SERVICES,TECHNOLOGY AND CIO,DELOITTE LLP LIMITED,463636,36104.34,GB809707706
BEIS,Met Office,2022-01-13,06 ACCOMMODATION,CHIEF FINANCIAL OFFICER,Biffa Waste Services Ltd,463642,1098.99,537911627
BEIS,Met Office,2022-01-13,11 SERVICES,PROGRAMMES,IAME LTD,463643,1200,140304468
BEIS,Met Office,2022-01-13,13 MISCELLANEOUS,SERVICES,IMAGETEK SYSTEMS LTD,463665,2981.7,GB586331424
BEIS,Met Office,2022-01-13,06 ACCOMMODATION,CHIEF FINANCIAL OFFICER,ANGLIAN WATER BUSINESS NATIONAL LTD,463666,29.75,51406002
BEIS,Met Office,2022-01-13,06 ACCOMMODATION,CHIEF FINANCIAL OFFICER,ANGLIAN WATER BUSINESS NATIONAL LTD,463667,54.85,51406002
BEIS,Met Office,2022-01-13,06 ACCOMMODATION,CHIEF FINANCIAL OFFICER,South West Water Ltd,463668,924.63,236873674
BEIS,Met Office,2022-01-13,06 ACCOMMODATION,CHIEF FINANCIAL OFFICER,ABOVE THE REST COMMERCIAL CLEANING LTD,463669,38,166969348
BEIS,Met Office,2022-01-13,06 ACCOMMODATION,CHIEF FINANCIAL OFFICER,ABOVE THE REST COMMERCIAL CLEANING LTD,463670,41,166969348
BEIS,Met Office,2022-01-13,06 ACCOMMODATION,CHIEF FINANCIAL OFFICER,ABOVE THE REST COMMERCIAL CLEANING LTD,463671,565,166969348
BEIS,Met Office,2022-01-13,06 ACCOMMODATION,CHIEF FINANCIAL OFFICER,DINNET & KINORD ESTATES,463672,4132.72,267044752
BEIS,Met Office,2022-01-13,06 ACCOMMODATION,CHIEF FINANCIAL OFFICER,Severn Trent Water Ltd,463673,18.26,486985565
BEIS,Met Office,2022-01-13,06 ACCOMMODATION,CHIEF FINANCIAL OFFICER,Belfast International Airport Ltd,463675,3427.52,617777601
BEIS,Met Office,2022-01-17,11 SERVICES,MARKETS,ACCELERATION EMARKETING,463676,2500,848940776
BEIS,Met Office,2022-01-13,06 ACCOMMODATION,CHIEF FINANCIAL OFFICER,RIVER RIDGE,463678,135.51,176286083
BEIS,Met Office,2022-01-13,11 SERVICES,CHIEF FINANCIAL OFFICER,SURE SOUTH ATLANTIC LTD,463679,4743,-
BEIS,Met Office,2022-01-13,11 SERVICES,CHIEF FINANCIAL OFFICER,SURE SOUTH ATLANTIC LTD,463680,770,-
BEIS,Met Office,2022-01-18,11 SERVICES,MARKETS,BJSS LIMITED,463682,14814,613295452
BEIS,Met Office,2022-01-18,11 SERVICES,MARKETS,BJSS LIMITED,463682,8230,613295452
BEIS,Met Office,2022-01-31,STOCK,SERVICES,CHARNWOOD FASTENERS LIMITED,463683,0,355315757
BEIS,Met Office,2022-01-31,TRADE CREDITORS,SERVICES,CHARNWOOD FASTENERS LIMITED,463683,2875,355315757
BEIS,Met Office,2022-01-31,11 SERVICES,SERVICES,CHARNWOOD FASTENERS LIMITED,463683,100,355315757
BEIS,Met Office,2022-01-13,06 ACCOMMODATION,CHIEF FINANCIAL OFFICER,MOUNT CHARLES GROUP LTD,463684,533.67,517116274
BEIS,Met Office,2022-01-20,11 SERVICES,MARKETS,Cgi It Uk Limited,463685,183197.86,232615194
BEIS,Met Office,2022-01-14,13 MISCELLANEOUS,CHIEF FINANCIAL OFFICER,DWYFOR COFFEE COMPANY LTD,463691,30.18,559811116
BEIS,Met Office,2022-01-13,11 SERVICES,PROGRAMMES,University Of Exeter,463695,31296,142047795
BEIS,Met Office,2022-01-17,06 ACCOMMODATION,CHIEF FINANCIAL OFFICER,Mitie Landscapes Ltd,463696,5904.75,GB 416 706 654
BEIS,Met Office,2022-01-17,11 SERVICES,PROGRAMMES,University Of Bath,463697,16237,639542122
BEIS,Met Office,2022-01-14,11 SERVICES,PROGRAMMES,University Of Bristol,463698,4475,991261800
BEIS,Met Office,2022-01-13,11 SERVICES,MARKETS,University Of Leeds,463699,50472.23,613451470
BEIS,Met Office,2022-01-17,04 CONTRACTORS,PEOPLE,MATRIX SCM LIMITED,463702,211327.21,249 5734 68
BEIS,Met Office,2022-01-18,11 SERVICES,CHIEF FINANCIAL OFFICER,British Red Cross Society,463703,919,706926227
BEIS,Met Office,2022-01-14,11 SERVICES,CHIEF FINANCIAL OFFICER,SURE SOUTH ATLANTIC LTD (ST HELENA),463704,1298.67,30005
BEIS,Met Office,2022-01-13,11 SERVICES,MARKETS,GINGER PUBLICITY LIMITED,463706,11750,207988567
BEIS,Met Office,2022-01-17,06 ACCOMMODATION,CHIEF FINANCIAL OFFICER,CARDIFF EXECUTIVE CENTRE LTD,463732,2470,864497378
BEIS,Met Office,2022-01-14,06 ACCOMMODATION,CHIEF FINANCIAL OFFICER,EDF ENERGY CUSTOMERS PLC,463733,18228.04,523041202
BEIS,Met Office,2022-01-17,06 ACCOMMODATION,CHIEF FINANCIAL OFFICER,EDF ENERGY CUSTOMERS PLC,463734,139745.3,523041202
BEIS,Met Office,2022-01-17,06 ACCOMMODATION,CHIEF FINANCIAL OFFICER,EDF ENERGY CUSTOMERS PLC,463735,104061.81,523041202
BEIS,Met Office,2022-01-17,06 ACCOMMODATION,CHIEF FINANCIAL OFFICER,EDF ENERGY CUSTOMERS PLC,463736,405433.52,523041202
BEIS,Met Office,2022-01-17,11 SERVICES,CHIEF FINANCIAL OFFICER,GAMMA TELECOM LTD,463737,114.01,823820344
BEIS,Met Office,2022-01-17,11 SERVICES,CHIEF FINANCIAL OFFICER,GAMMA TELECOM LTD,463737,27342.76,823820344
BEIS,Met Office,2022-01-17,06 ACCOMMODATION,CHIEF FINANCIAL OFFICER,CORONA ENERGY LTD,463738,981.33,577704800
BEIS,Met Office,2022-01-17,06 ACCOMMODATION,CHIEF FINANCIAL OFFICER,CORONA ENERGY LTD,463739,16562.6,577704800
BEIS,Met Office,2022-01-14,06 ACCOMMODATION,CHIEF FINANCIAL OFFICER,South West Water Ltd,463741,3383.47,236873674
BEIS,Met Office,2022-01-14,11 SERVICES,MARKETS,ULTRA ELECTRONICS LTD NUCLEAR CONTROL SYSTEMS,463746,4926.81,123340754
BEIS,Met Office,2022-01-19,13 MISCELLANEOUS,SCIENCE,AB MULTIMEDIA LTD,463756,375,849333502
BEIS,Met Office,2022-01-19,13 MISCELLANEOUS,SCIENCE,AB MULTIMEDIA LTD,463757,550,849333502
BEIS,Met Office,2022-01-17,06 ACCOMMODATION,CHIEF FINANCIAL OFFICER,British Gas Trading Ltd,463758,31.39,684966762
BEIS,Met Office,2022-01-17,06 ACCOMMODATION,CHIEF FINANCIAL OFFICER,British Gas Trading Ltd,463759,30.38,684966762
BEIS,Met Office,2022-01-17,06 ACCOMMODATION,CHIEF FINANCIAL OFFICER,British Gas Trading Ltd,463760,31.39,684966762
BEIS,Met Office,2022-01-17,06 ACCOMMODATION,CHIEF FINANCIAL OFFICER,British Gas Trading Ltd,463761,30.38,684966762
BEIS,Met Office,2022-01-17,06 ACCOMMODATION,CHIEF FINANCIAL OFFICER,CARDIFF EXECUTIVE CENTRE LTD,463762,2470,864497378
BEIS,Met Office,2022-01-17,07 EQUIPMENT,SERVICES,CLARKE LANE ENGINEERING LTD,463763,468.3,412068487
BEIS,Met Office,2022-01-17,07 EQUIPMENT,SERVICES,CLARKE LANE ENGINEERING LTD,463763,15,412068487
BEIS,Met Office,2022-01-17,07 EQUIPMENT,SERVICES,CLARKE LANE ENGINEERING LTD,463763,38.2,412068487
BEIS,Met Office,2022-01-18,13 MISCELLANEOUS,SCIENCE,University Of Reading,463764,333.33,200012659
BEIS,Met Office,2022-01-18,13 MISCELLANEOUS,SCIENCE,University Of Reading,463765,333.33,200012659
BEIS,Met Office,2022-01-17,11 SERVICES,PROGRAMMES,University Of Reading,463766,135044.4,200012659
BEIS,Met Office,2022-01-17,11 SERVICES,CHIEF FINANCIAL OFFICER,GIBRALTAR NYNEX COMMUNICATIONS LTD,463767,702,NOVAT
BEIS,Met Office,2022-01-17,11 SERVICES,TECHNOLOGY AND CIO,CLOUDREACH EUROPE LIMITED,463768,3218.95,978187168
BEIS,Met Office,2022-01-18,10 EQUIPMENT MAINTENANCE,SERVICES,OVARRO TS LTD,463769,17825,648280518
BEIS,Met Office,2022-01-17,06 ACCOMMODATION,CHIEF FINANCIAL OFFICER,British Gas Trading Ltd,463770,32.4,684966762
BEIS,Met Office,2022-01-17,06 ACCOMMODATION,CHIEF FINANCIAL OFFICER,British Gas Trading Ltd,463771,27.34,684966762
BEIS,Met Office,2022-01-19,11 SERVICES,PROGRAMMES,University Of Reading,463772,56401,200012659
BEIS,Met Office,2022-01-19,08 SOFTWARE LICENCES,TECHNOLOGY AND CIO,PHOENIX SOFTWARE LIMITED,463773,26677.26,755349015
BEIS,Met Office,2022-01-19,08 SOFTWARE LICENCES,TECHNOLOGY AND CIO,PHOENIX SOFTWARE LIMITED,463773,28011.13,755349015
BEIS,Met Office,2022-01-20,11 SERVICES,CHIEF FINANCIAL OFFICER,DIGITAL COMMUNICATIONS SYSTEMS LIMITED,463774,2401.24,GB 556 1971 19
BEIS,Met Office,2022-01-17,13 MISCELLANEOUS,SCIENCE,University Of Reading,463775,333.34,200012659
BEIS,Met Office,2022-01-17,13 MISCELLANEOUS,SCIENCE,University Of Reading,463776,333.34,200012659
BEIS,Met Office,2022-01-17,06 ACCOMMODATION,CHIEF FINANCIAL OFFICER,BUSINESS SUPPORT CENTRE LTD,463777,47.08,927365208
BEIS,Met Office,2022-01-17,06 ACCOMMODATION,CHIEF FINANCIAL OFFICER,MAPP (PROPERTY MANAGEMENT) LTD,463778,4499.3,725900735
BEIS,Met Office,2022-01-18,PLANT AND EQUIPMENT,CHIEF FINANCIAL OFFICER,CBRE MANAGED SERVICES LTD,463779,31068,853936883
BEIS,Met Office,2022-01-17,03 STAFF COSTS T&S,SERVICES,CHARLIE'S TRAVEL LTD,463780,367.36,783848277
BEIS,Met Office,2022-01-18,PLANT AND EQUIPMENT,CHIEF FINANCIAL OFFICER,CBRE MANAGED SERVICES LTD,463781,31068,853936883
BEIS,Met Office,2022-01-17,03 STAFF COSTS T&S,SERVICES,AIRPORT CAR RENTALS LTD,463782,137,-
BEIS,Met Office,2022-01-17,03 STAFF COSTS T&S,SERVICES,AIRPORT CAR RENTALS LTD,463782,183,-
BEIS,Met Office,2022-01-18,11 SERVICES,CHIEF FINANCIAL OFFICER,ADT FIRE AND SECURITY PLC,463806,184.25,413633086
BEIS,Met Office,2022-01-18,11 SERVICES,CHIEF FINANCIAL OFFICER,ADT FIRE AND SECURITY PLC,463807,571.8,413633086
BEIS,Met Office,2022-01-18,07 EQUIPMENT,SERVICES,NEWBURY ELECTRONICS LTD,463808,421.5,199294011
BEIS,Met Office,2022-01-20,11 SERVICES,CHIEF FINANCIAL OFFICER,British Red Cross Society,463809,159,706926227
BEIS,Met Office,2022-01-20,11 SERVICES,PROGRAMMES,Plymouth Marine Laboratory,463811,15000,927105830
BEIS,Met Office,2022-01-18,11 SERVICES,CHIEF FINANCIAL OFFICER,SURE SOUTH ATLANTIC LTD,463813,1244.34,NOVATREG
BEIS,Met Office,2022-01-18,03 STAFF COSTS T&S,CHIEF FINANCIAL OFFICER,ENTERPRISE RENT A CAR UK LTD,463815,679.27,215557314
BEIS,Met Office,2022-01-18,11 SERVICES,CHIEF FINANCIAL OFFICER,POSTURITE (UK) LTD,463816,50,583565114
BEIS,Met Office,2022-01-20,11 SERVICES,CHIEF FINANCIAL OFFICER,INTEROUTE COMMUNICATIONS LIMITED,463817,5731.94,832 7071 39
BEIS,Met Office,2022-01-18,11 SERVICES,CHIEF FINANCIAL OFFICER,POSTURITE (UK) LTD,463818,61.94,583565114
BEIS,Met Office,2022-01-18,06 ACCOMMODATION,CHIEF FINANCIAL OFFICER,MORAY COUNCIL,463822,2925,663755506
BEIS,Met Office,2022-01-18,11 SERVICES,CHIEF FINANCIAL OFFICER,ALLSTAR BUSINESS SOLUTIONS LTD,463823,1906.07,747880191
BEIS,Met Office,2022-01-18,07 EQUIPMENT,SERVICES,INDUSTRIAL RUBBER LTD,463824,3495,711918640
BEIS,Met Office,2022-01-18,11 SERVICES,PROGRAMMES,University Of Exeter,463825,13348.57,142047795
BEIS,Met Office,2022-01-20,12 INTERNATIONAL,SERVICES,National Oceanography Centre,463826,7000,GB 338 5487 64
BEIS,Met Office,2022-01-19,11 SERVICES,PROGRAMMES,University Of Cambridge,463827,56722.27,214222124
BEIS,Met Office,2022-01-20,03 STAFF COSTS T&S,SERVICES,DBS FINANCE RECEIPTS CTS,463847,803,888805068
BEIS,Met Office,2022-01-18,11 SERVICES,MARKETS,ALISON MOULDING,463849,720,-
BEIS,Met Office,2022-01-20,11 SERVICES,PEOPLE,LEARNING TREE INTERNATIONAL LTD,463850,4885,245335568
BEIS,Met Office,2022-01-20,11 SERVICES,CHIEF FINANCIAL OFFICER,BT GLOBAL SERVICES,463851,7821.55,245719348
BEIS,Met Office,2022-01-18,10 EQUIPMENT MAINTENANCE,SERVICES,YOUNG CALIBRATION LIMITED,463852,1350,673900720
BEIS,Met Office,2022-01-18,11 SERVICES,SERVICES,YOUNG CALIBRATION LIMITED,463852,15,673900720
BEIS,Met Office,2022-01-20,11 SERVICES,PROGRAMMES,University Of Exeter,463853,31545,142047795
BEIS,Met Office,2022-01-20,11 SERVICES,SERVICES,APPLIED SATELLITE TECHNOLOGY SYSTEMS LTD,463854,-128.25,720108683
BEIS,Met Office,2022-01-20,11 SERVICES,SERVICES,REDACTED PERONSAL DATA,463858,130.24,-
BEIS,Met Office,2022-01-18,11 SERVICES,MARKETS,DBS FINANCE RECEIPTS CTS,463859,13824.67,888805068
BEIS,Met Office,2022-01-18,11 SERVICES,MARKETS,FLORENCE PICHON,463860,375,-
BEIS,Met Office,2022-01-18,11 SERVICES,MARKETS,ROGER CALOW,463861,1500,-
BEIS,Met Office,2022-01-28,11 SERVICES,PROGRAMMES,University Of Reading,463867,27501.08,200012659
BEIS,Met Office,2022-01-24,11 SERVICES,PROGRAMMES,University Of Reading,463868,30000,200012659
BEIS,Met Office,2022-01-20,11 SERVICES,MARKETS,PRACTICAL ACTION CONSULTING,463873,4695.84,880992476
BEIS,Met Office,2022-01-24,TRADE CREDITORS,OTHER,NATWEST COMMERCIAL CARDS DIVISION,463900,102030.36,N/A
BEIS,Met Office,2022-01-24,07 EQUIPMENT,CHIEF FINANCIAL OFFICER,NATWEST COMMERCIAL CARDS DIVISION,463901,4485.49,N/A
BEIS,Met Office,2022-01-20,11 SERVICES,PROGRAMMES,University Of Reading,463910,60000,200012659
BEIS,Met Office,2022-01-24,11 SERVICES,CHIEF FINANCIAL OFFICER,REDACTED PERONSAL DATA,463912,238,729159704
BEIS,Met Office,2022-01-24,11 SERVICES,MARKETS,BJSS LIMITED,463913,32050,613295452
BEIS,Met Office,2022-01-20,13 MISCELLANEOUS,OFFICE OF THE CEO,THOMSON REUTERS (PROFESSIONAL) UK LTD,463914,10843,900548743
BEIS,Met Office,2022-01-24,11 SERVICES,PROGRAMMES,BJSS LIMITED,463915,11522,613295452
BEIS,Met Office,2022-01-20,11 SERVICES,PROGRAMMES,University Of Birmingham,463916,73535.34,729856187
BEIS,Met Office,2022-01-25,11 SERVICES,PROGRAMMES,Imperial College,463917,71127,649926678
BEIS,Met Office,2022-01-24,11 SERVICES,PROGRAMMES,BJSS LIMITED,463919,8437.5,613295452
BEIS,Met Office,2022-01-24,12 INTERNATIONAL,MARKETS,APPLIED SATELLITE TECHNOLOGY SYSTEMS LTD,463920,30.97,720108683
BEIS,Met Office,2022-01-20,11 SERVICES,SERVICES,APPLIED SATELLITE TECHNOLOGY SYSTEMS LTD,463921,84.98,720108683
BEIS,Met Office,2022-01-24,11 SERVICES,SERVICES,APPLIED SATELLITE TECHNOLOGY SYSTEMS LTD,463922,7594.7,720108683
BEIS,Met Office,2022-01-20,11 SERVICES,SERVICES,APPLIED SATELLITE TECHNOLOGY SYSTEMS LTD,463923,284.42,720108683
BEIS,Met Office,2022-01-20,11 SERVICES,SERVICES,APPLIED SATELLITE TECHNOLOGY SYSTEMS LTD,463926,64.74,720108683
BEIS,Met Office,2022-01-24,INFORMATION TECHNOLOGY,TECHNOLOGY AND CIO,COMPUTACENTER (UK) LTD,463927,29823.28,490334648
BEIS,Met Office,2022-01-21,10 EQUIPMENT MAINTENANCE,TECHNOLOGY AND CIO,COMPUTACENTER (UK) LTD,463928,22059.91,490334648
BEIS,Met Office,2022-01-21,08 SOFTWARE LICENCES,CHIEF FINANCIAL OFFICER,CEMAR,463929,47.9,915042161
BEIS,Met Office,2022-01-24,11 SERVICES,PROGRAMMES,University Of Reading,463930,-60000,200012659
BEIS,Met Office,2022-01-20,03 STAFF COSTS T&S,CHIEF FINANCIAL OFFICER,ENTERPRISE RENT A CAR UK LTD,463950,281.98,215557314
BEIS,Met Office,2022-01-24,11 SERVICES,MARKETS,UNITED KINGDOM RESEARCH AND INNOVATION (UKRI),463951,2870.19,GB287461957
BEIS,Met Office,2022-01-21,11 SERVICES,CHIEF FINANCIAL OFFICER,DIGITAL COMMUNICATIONS SYSTEMS LIMITED,463952,2702.12,GB 556 1971 19
BEIS,Met Office,2022-01-20,11 SERVICES,PROGRAMMES,FLYFORM LTD,463953,5250,237333808
BEIS,Met Office,2022-01-24,11 SERVICES,CHIEF FINANCIAL OFFICER,MAWASEM LTD,463957,29875.72,197694731
BEIS,Met Office,2022-01-24,04 CONTRACTORS,PEOPLE,MATRIX SCM LIMITED,463961,276377.16,249 5734 68
BEIS,Met Office,2022-01-24,11 SERVICES,CHIEF FINANCIAL OFFICER,BT CONFERENCING,463963,102.86,245719348
BEIS,Met Office,2022-01-21,06 ACCOMMODATION,CHIEF FINANCIAL OFFICER,POWER NI ENERGY LTD,463964,156.84,617518142
BEIS,Met Office,2022-01-20,11 SERVICES,PROGRAMMES,University of Edinburgh,463965,71114,592950700
BEIS,Met Office,2022-01-24,INFORMATION TECHNOLOGY,PROGRAMMES,COMPUTACENTER (UK) LTD,463966,102503.73,490334648
BEIS,Met Office,2022-01-25,11 SERVICES,TECHNOLOGY AND CIO,BAE SYSTEMS APPLIED INTELLIGENCE LIMITED,463967,13200,GB641407169
BEIS,Met Office,2022-01-27,11 SERVICES,TECHNOLOGY AND CIO,BAE SYSTEMS APPLIED INTELLIGENCE LIMITED,463969,14070,GB641407169
BEIS,Met Office,2022-01-25,11 SERVICES,TECHNOLOGY AND CIO,BAE SYSTEMS APPLIED INTELLIGENCE LIMITED,463970,9197,GB641407169
BEIS,Met Office,2022-01-25,11 SERVICES,TECHNOLOGY AND CIO,BAE SYSTEMS APPLIED INTELLIGENCE LIMITED,463971,9849,GB641407169
BEIS,Met Office,2022-01-27,11 SERVICES,TECHNOLOGY AND CIO,BAE SYSTEMS APPLIED INTELLIGENCE LIMITED,463972,12194,GB641407169
BEIS,Met Office,2022-01-27,11 SERVICES,TECHNOLOGY AND CIO,BAE SYSTEMS APPLIED INTELLIGENCE LIMITED,463973,11880,GB641407169
BEIS,Met Office,2022-01-24,11 SERVICES,MARKETS,SOCIAL SENSING LTD,463974,2758,-
BEIS,Met Office,2022-01-25,11 SERVICES,PROGRAMMES,University Of Reading,463975,1000,200012659
BEIS,Met Office,2022-01-25,11 SERVICES,MARKETS,SOCIAL SENSING LTD,463976,4000,-
BEIS,Met Office,2022-01-24,13 MISCELLANEOUS,SCIENCE,University Of Reading,463977,1000,200012659
BEIS,Met Office,2022-01-27,11 SERVICES,MARKETS,FCDO,463980,26.19,888813560
BEIS,Met Office,2022-01-25,11 SERVICES,TECHNOLOGY AND CIO,BAE SYSTEMS APPLIED INTELLIGENCE LIMITED,463982,11220,GB641407169
BEIS,Met Office,2022-01-27,11 SERVICES,TECHNOLOGY AND CIO,BAE SYSTEMS APPLIED INTELLIGENCE LIMITED,463983,9197,GB641407169
BEIS,Met Office,2022-01-27,11 SERVICES,TECHNOLOGY AND CIO,BAE SYSTEMS APPLIED INTELLIGENCE LIMITED,463984,8385.5,GB641407169
BEIS,Met Office,2022-01-25,11 SERVICES,TECHNOLOGY AND CIO,BAE SYSTEMS APPLIED INTELLIGENCE LIMITED,463985,9240,GB641407169
BEIS,Met Office,2022-01-27,11 SERVICES,TECHNOLOGY AND CIO,BAE SYSTEMS APPLIED INTELLIGENCE LIMITED,463986,8580,GB641407169
BEIS,Met Office,2022-01-27,11 SERVICES,TECHNOLOGY AND CIO,BAE SYSTEMS APPLIED INTELLIGENCE LIMITED,463987,10560,GB641407169
BEIS,Met Office,2022-01-25,11 SERVICES,TECHNOLOGY AND CIO,BAE SYSTEMS APPLIED INTELLIGENCE LIMITED,463988,4050,GB641407169
BEIS,Met Office,2022-01-27,11 SERVICES,TECHNOLOGY AND CIO,BAE SYSTEMS APPLIED INTELLIGENCE LIMITED,463989,9240,GB641407169
BEIS,Met Office,2022-01-25,11 SERVICES,TECHNOLOGY AND CIO,BAE SYSTEMS APPLIED INTELLIGENCE LIMITED,463990,8580,GB641407169
BEIS,Met Office,2022-01-25,11 SERVICES,TECHNOLOGY AND CIO,BAE SYSTEMS APPLIED INTELLIGENCE LIMITED,463991,14070,GB641407169
BEIS,Met Office,2022-01-27,11 SERVICES,TECHNOLOGY AND CIO,BAE SYSTEMS APPLIED INTELLIGENCE LIMITED,463992,4869,GB641407169
BEIS,Met Office,2022-01-27,11 SERVICES,TECHNOLOGY AND CIO,BAE SYSTEMS APPLIED INTELLIGENCE LIMITED,463994,6492,GB641407169
BEIS,Met Office,2022-01-21,06 ACCOMMODATION,MARKETS,Trinity House,464001,485,243120414
BEIS,Met Office,2022-01-21,06 ACCOMMODATION,MARKETS,Trinity House,464001,12,243120414
BEIS,Met Office,2022-01-21,06 ACCOMMODATION,MARKETS,Trinity House,464002,485,243120414
BEIS,Met Office,2022-01-21,06 ACCOMMODATION,MARKETS,Trinity House,464002,12,243120414
BEIS,Met Office,2022-01-25,11 SERVICES,CHIEF FINANCIAL OFFICER,POSTURITE (UK) LTD,464003,50,583565114
BEIS,Met Office,2022-01-25,11 SERVICES,MARKETS,SKATING PANDA LTD,464004,48960,887851360
BEIS,Met Office,2022-01-24,11 SERVICES,SERVICES,Landmark Information Group Ltd,464005,25298.5,634509735
BEIS,Met Office,2022-01-24,11 SERVICES,SERVICES,Landmark Information Group Ltd,464006,23958.6,634509735
BEIS,Met Office,2022-01-24,11 SERVICES,PROGRAMMES,Landmark Information Group Ltd,464007,15105,634509735
BEIS,Met Office,2022-01-24,11 SERVICES,SERVICES,Landmark Information Group Ltd,464008,8300,634509735
BEIS,Met Office,2022-01-24,11 SERVICES,SERVICES,Landmark Information Group Ltd,464009,33906.2,634509735
BEIS,Met Office,2022-01-24,11 SERVICES,SERVICES,Landmark Information Group Ltd,464010,30386.5,634509735
BEIS,Met Office,2022-01-21,11 SERVICES,MARKETS,RSM,464011,3000,890965570
BEIS,Met Office,2022-01-21,11 SERVICES,MARKETS,RSM,464012,3950,890965570
BEIS,Met Office,2022-01-21,06 ACCOMMODATION,CHIEF FINANCIAL OFFICER,South West Water Ltd,464037,598.55,236873674
BEIS,Met Office,2022-01-21,06 ACCOMMODATION,CHIEF FINANCIAL OFFICER,South West Water Ltd,464038,600.12,236873674
BEIS,Met Office,2022-01-24,11 SERVICES,PEOPLE,ADJUST,464039,395,-
BEIS,Met Office,2022-01-25,11 SERVICES,PROGRAMMES,RAIN PLUS PLUS LIMITED,464040,20000,-
BEIS,Met Office,2022-01-25,11 SERVICES,CHIEF FINANCIAL OFFICER,POSTURITE (UK) LTD,464050,50,583565114
BEIS,Met Office,2022-01-24,08 SOFTWARE LICENCES,TECHNOLOGY AND CIO,COMPUTACENTER (UK) LTD,464051,2105.28,490334648
BEIS,Met Office,2022-01-24,13 MISCELLANEOUS,SERVICES,IMAGETEK SYSTEMS LTD,464052,1403.48,GB586331424
BEIS,Met Office,2022-01-24,06 ACCOMMODATION,CHIEF FINANCIAL OFFICER,Scottish Police Authority,464053,221.01,158533589
BEIS,Met Office,2022-01-31,11 SERVICES,PROGRAMMES,GAMMA TELECOM LTD,464061,4012.48,823820344
BEIS,Met Office,2022-01-31,11 SERVICES,PROGRAMMES,GAMMA TELECOM LTD,464061,54,823820344
BEIS,Met Office,2022-01-31,11 SERVICES,PROGRAMMES,GAMMA TELECOM LTD,464061,38.14,823820344
BEIS,Met Office,2022-01-26,08 SOFTWARE LICENCES,PEOPLE,THYMOMETRICS LIMITED,464062,48535.2,GB 154 4517 15
BEIS,Met Office,2022-01-24,13 MISCELLANEOUS,SCIENCE,University Of Reading,464063,333.34,200012659
BEIS,Met Office,2022-01-24,13 MISCELLANEOUS,SCIENCE,University Of Reading,464064,333.34,200012659
BEIS,Met Office,2022-01-25,11 SERVICES,CHIEF FINANCIAL OFFICER,Morton Fraser LLP,464066,75,269129336
BEIS,Met Office,2022-01-24,11 SERVICES,MARKETS,Civil Aviation Authority,464067,980,771548214
BEIS,Met Office,2022-01-25,06 ACCOMMODATION,CHIEF FINANCIAL OFFICER,CBRE MANAGED SERVICES LTD,464068,144220.3,853936883
BEIS,Met Office,2022-01-26,06 ACCOMMODATION,CHIEF FINANCIAL OFFICER,CBRE MANAGED SERVICES LTD,464074,26687.4,853936883
BEIS,Met Office,2022-01-27,11 SERVICES,TECHNOLOGY AND CIO,BAE SYSTEMS APPLIED INTELLIGENCE LIMITED,464079,7256.25,GB641407169
BEIS,Met Office,2022-01-25,11 SERVICES,CHIEF FINANCIAL OFFICER,POSTURITE (UK) LTD,464080,1065.27,583565114
BEIS,Met Office,2022-01-26,STOCK,SERVICES,Campbell Scientific Ltd,464081,-0.04,428453933
BEIS,Met Office,2022-01-26,TRADE CREDITORS,SERVICES,Campbell Scientific Ltd,464081,11557.04,428453933
BEIS,Met Office,2022-01-26,11 SERVICES,SERVICES,Campbell Scientific Ltd,464081,23,428453933
BEIS,Met Office,2022-01-27,11 SERVICES,TECHNOLOGY AND CIO,BAE SYSTEMS APPLIED INTELLIGENCE LIMITED,464085,4050,GB641407169
BEIS,Met Office,2022-01-27,11 SERVICES,TECHNOLOGY AND CIO,BAE SYSTEMS APPLIED INTELLIGENCE LIMITED,464087,1125,GB641407169
BEIS,Met Office,2022-01-25,11 SERVICES,MARKETS,CULVERWELL ASSOCIATES LTD,464088,10500,386 6119 65
BEIS,Met Office,2022-01-25,08 SOFTWARE LICENCES,CHIEF FINANCIAL OFFICER,CEMAR,464089,90,915042161
BEIS,Met Office,2022-01-25,11 SERVICES,PEOPLE,HOPSCOTCH CONSULTING,464090,35076,102099056
BEIS,Met Office,2022-01-25,06 ACCOMMODATION,CHIEF FINANCIAL OFFICER,BUSINESS STREAM,464092,252.63,945850885
BEIS,Met Office,2022-01-25,03 STAFF COSTS T&S,CHIEF FINANCIAL OFFICER,ENTERPRISE RENT A CAR UK LTD,464093,694.8,215557314
BEIS,Met Office,2022-01-25,06 ACCOMMODATION,CHIEF FINANCIAL OFFICER,Biffa Waste Services Ltd,464113,275,537911627
BEIS,Met Office,2022-01-26,06 ACCOMMODATION,CHIEF FINANCIAL OFFICER,Biffa Waste Services Ltd,464114,356.99,537911627
BEIS,Met Office,2022-01-25,11 SERVICES,CHIEF FINANCIAL OFFICER,STAGE ENGAGE LTD,464116,24051.31,GB120210593
BEIS,Met Office,2022-01-26,12 INTERNATIONAL,MARKETS,MACITECHSY SOLUTIONS,464117,640,-
BEIS,Met Office,2022-01-26,11 SERVICES,PROGRAMMES,University Of Leeds,464120,56551,613451470
BEIS,Met Office,2022-01-26,11 SERVICES,PROGRAMMES,University of Edinburgh,464124,64607.2,592950700
BEIS,Met Office,2022-01-28,07 EQUIPMENT,SERVICES,COMPUTACENTER (UK) LTD,464125,3057.6,490334648
BEIS,Met Office,2022-01-25,11 SERVICES,CHIEF FINANCIAL OFFICER,POSTURITE (UK) LTD,464126,150.56,583565114
BEIS,Met Office,2022-01-25,11 SERVICES,SERVICES,APPLIED SATELLITE TECHNOLOGY SYSTEMS LTD,464128,30.97,720108683
BEIS,Met Office,2022-01-28,11 SERVICES,MARKETS,Cgi It Uk Limited,464129,67881.8,232615194
BEIS,Met Office,2022-01-26,FIXTURE & FITTINGS,CHIEF FINANCIAL OFFICER,ECHOES ECOLOGY,464130,1495,921502463
BEIS,Met Office,2022-01-25,08 SOFTWARE LICENCES,TECHNOLOGY AND CIO,GOOGLE IRELAND LTD,464131,44.85,6388047V
BEIS,Met Office,2022-01-25,11 SERVICES,SERVICES,Landmark Information Group Ltd,464133,1850,634509735
BEIS,Met Office,2022-01-27,11 SERVICES,CHIEF FINANCIAL OFFICER,BT plc,464134,876.22,245719348
BEIS,Met Office,2022-01-27,06 ACCOMMODATION,CHIEF FINANCIAL OFFICER,CALOR GAS LIMITED,464157,34.25,207610984
BEIS,Met Office,2022-01-27,11 SERVICES,CHIEF FINANCIAL OFFICER,MITIE SECURITY LTD,464158,20588.08,416706654
BEIS,Met Office,2022-01-27,11 SERVICES,CHIEF FINANCIAL OFFICER,MITIE SECURITY LTD,464159,10294.23,416706654
BEIS,Met Office,2022-01-28,07 EQUIPMENT,SERVICES,Hydrosphere Uk Limited,464160,788,641275549
BEIS,Met Office,2022-01-28,13 MISCELLANEOUS,SERVICES,Hydrosphere Uk Limited,464160,13.75,641275549
BEIS,Met Office,2022-01-27,11 SERVICES,CHIEF FINANCIAL OFFICER,BT GLOBAL SERVICES,464161,12530.25,245719348
BEIS,Met Office,2022-01-31,11 SERVICES,PROGRAMMES,BAE SYSTEMS APPLIED INTELLIGENCE LIMITED,464162,9900,GB641407169
BEIS,Met Office,2022-01-31,11 SERVICES,PROGRAMMES,BAE SYSTEMS APPLIED INTELLIGENCE LIMITED,464163,10820,GB641407169
BEIS,Met Office,2022-01-31,11 SERVICES,PROGRAMMES,BAE SYSTEMS APPLIED INTELLIGENCE LIMITED,464164,12150,GB641407169
BEIS,Met Office,2022-01-31,11 SERVICES,PROGRAMMES,BAE SYSTEMS APPLIED INTELLIGENCE LIMITED,464165,28505.46,GB641407169
BEIS,Met Office,2022-01-31,11 SERVICES,PROGRAMMES,BAE SYSTEMS APPLIED INTELLIGENCE LIMITED,464167,10903.13,GB641407169
BEIS,Met Office,2022-01-31,11 SERVICES,PROGRAMMES,BAE SYSTEMS APPLIED INTELLIGENCE LIMITED,464168,7504,GB641407169
BEIS,Met Office,2022-01-31,11 SERVICES,PROGRAMMES,BAE SYSTEMS APPLIED INTELLIGENCE LIMITED,464169,9380,GB641407169
BEIS,Met Office,2022-01-31,11 SERVICES,PROGRAMMES,BAE SYSTEMS APPLIED INTELLIGENCE LIMITED,464170,9900,GB641407169
BEIS,Met Office,2022-01-31,11 SERVICES,PROGRAMMES,BAE SYSTEMS APPLIED INTELLIGENCE LIMITED,464171,11630,GB641407169
BEIS,Met Office,2022-01-27,11 SERVICES,PROGRAMMES,BAE SYSTEMS APPLIED INTELLIGENCE LIMITED,464172,10467,GB641407169
BEIS,Met Office,2022-01-31,11 SERVICES,PROGRAMMES,BAE SYSTEMS APPLIED INTELLIGENCE LIMITED,464173,11484.63,GB641407169
BEIS,Met Office,2022-01-27,06 ACCOMMODATION,CHIEF FINANCIAL OFFICER,GRS BUILDING SERVICES SOUTH-WEST,464174,694.76,-
BEIS,Met Office,2022-01-27,INFORMATION TECHNOLOGY,TECHNOLOGY AND CIO,COMPUTACENTER (UK) LTD,464175,63224.7,490334648
BEIS,Met Office,2022-01-27,06 ACCOMMODATION,CHIEF FINANCIAL OFFICER,CALOR GAS LIMITED,464176,34.25,207610984
BEIS,Met Office,2022-01-27,06 ACCOMMODATION,CHIEF FINANCIAL OFFICER,CALOR GAS LIMITED,464177,34.25,207610984
BEIS,Met Office,2022-01-27,06 ACCOMMODATION,CHIEF FINANCIAL OFFICER,CALOR GAS LIMITED,464178,49.18,207610984
BEIS,Met Office,2022-01-27,06 ACCOMMODATION,CHIEF FINANCIAL OFFICER,CALOR GAS LIMITED,464179,34.25,207610984
BEIS,Met Office,2022-01-27,06 ACCOMMODATION,CHIEF FINANCIAL OFFICER,CALOR GAS LIMITED,464180,19.61,207610984
BEIS,Met Office,2022-01-28,06 ACCOMMODATION,CHIEF FINANCIAL OFFICER,CALOR GAS LIMITED,464181,34.25,207610984
BEIS,Met Office,2022-01-31,11 SERVICES,PROGRAMMES,THE BEHAVIORAL ARCHITECTS,464196,5000,108121459
BEIS,Met Office,2022-01-31,13 MISCELLANEOUS,CHIEF FINANCIAL OFFICER,NORSCOTT VENDING SERVICES LTD,464197,77.7,751402071
BEIS,Met Office,2022-01-31,11 SERVICES,PEOPLE,ACTIVE LEARNING TEAM LTD,464198,2800,-
BEIS,Met Office,2022-01-27,11 SERVICES,MARKETS,WALNUT UNLIMITED LIMITED,464199,6715,648857968
BEIS,Met Office,2022-01-31,11 SERVICES,PROGRAMMES,"CHANNEL FUEL LTD,",464201,6000,GB307738002
BEIS,Met Office,2022-01-31,06 ACCOMMODATION,CHIEF FINANCIAL OFFICER,CBRE MANAGED SERVICES LTD,464202,27079.82,853936883
BEIS,Met Office,2022-01-28,11 SERVICES,PROGRAMMES,CAMBRIDGE ENVIRONMENTAL RESEARCH CONSULTANTS,464203,59402,GB424750755
BEIS,Met Office,2022-01-31,06 ACCOMMODATION,CHIEF FINANCIAL OFFICER,CBRE MANAGED SERVICES LTD,464204,6623.78,853936883
BEIS,Met Office,2022-01-31,13 MISCELLANEOUS,CHIEF FINANCIAL OFFICER,EDEN SPRINGS UK LTD,464206,24.55,232160411
BEIS,Met Office,2022-01-31,13 MISCELLANEOUS,CHIEF FINANCIAL OFFICER,EDEN SPRINGS UK LTD,464206,8.63,232160411
BEIS,Met Office,2022-01-31,13 MISCELLANEOUS,CHIEF FINANCIAL OFFICER,EDEN SPRINGS UK LTD,464206,346.76,232160411
BEIS,Met Office,2022-01-31,13 MISCELLANEOUS,CHIEF FINANCIAL OFFICER,EDEN SPRINGS UK LTD,464206,24.55,232160411
BEIS,Met Office,2022-01-27,PAYE AND VAT,OTHER,HMRC,464217,10773194.97,-
BEIS,Met Office,2022-01-31,10 EQUIPMENT MAINTENANCE,TECHNOLOGY AND CIO,COMPUTACENTER (UK) LTD,464218,3202.07,490334648
BEIS,Met Office,2022-01-31,11 SERVICES,SCIENCE,Plymouth Marine Laboratory,464249,30000,927105830
BEIS,Met Office,2022-01-31,11 SERVICES,CHIEF FINANCIAL OFFICER,WEBEX COMMUNICATIONS UK LTD,464250,209.92,815974302
BEIS,Met Office,2022-01-31,13 MISCELLANEOUS,SCIENCE,AB MULTIMEDIA LTD,464255,385,849333502
BEIS,Met Office,2022-01-31,03 STAFF COSTS T&S,SERVICES,CHARLIE'S TRAVEL LTD,464256,387.43,783848277
BEIS,Met Office,2022-01-31,10 EQUIPMENT MAINTENANCE,TECHNOLOGY AND CIO,COMPUTACENTER (UK) LTD,464261,43340.49,490334648
BEIS,Met Office,2022-01-31,07 EQUIPMENT,SERVICES,ABOUT PRESENTATION LTD,464262,4333,619895287
BEIS,Met Office,2022-01-31,11 SERVICES,TECHNOLOGY AND CIO,AMAZON WEB SERVICES UK LTD,464264,1668,170 4318 31
BEIS,Met Office,2022-01-31,11 SERVICES,OTHER,METRIKUS LIMITED,464273,7270.83,321 8772 02
BEIS,Met Office,2022-01-31,06 ACCOMMODATION,CHIEF FINANCIAL OFFICER,D&G OFFICE SERVICES LTD,464274,292.5,272997547
BEIS,Met Office,2022-01-31,06 ACCOMMODATION,CHIEF FINANCIAL OFFICER,BIDVEST NOONAN UK LTD,464280,395.68,GB847176988
BEIS,Met Office,2022-01-31,06 ACCOMMODATION,CHIEF FINANCIAL OFFICER,BIDVEST NOONAN UK LTD,464281,890.6,GB847176988
BEIS,Met Office,2022-01-31,03 STAFF COSTS T&S,CHIEF FINANCIAL OFFICER,ENTERPRISE RENT A CAR UK LTD,464294,1147.48,215557314
